Workbook

Sheet OCTUBRE
K6: 2025-10-31
A7: INVENTARIO DE ALMACEN
A8: CODIGO | B8: DESCRIPCION DEL PRODUCTO | E8: UNIDAD MEDIDA | F8: CANTIDAD | G8: ENTRADA | H8: TOTAL | I8: PRECIO | J8: SALIDA DE USO MENSUAL | K8: CANTIDAD ACTIVA EN ALMACEN | L8: VALOR TOTAL ACTIVO | M8: VALORDE TOTAL CONSUMO
A9: 101 | B9: ACORDEON 10*12 CARTON PIEDRA | E9: UNID | F9: 4 | H9: =F9+G9 -> 4 | I9: 744.00 $ | J9: 4 | K9: =H9-J9 -> 0 | L9: =I9*K9 -> 0 | M9: =I9*J9 -> $2,976.00
A10: 102 | B10: AMBIENTADOR SPRAY | E10: UNID | F10: 0 | G10: 24 | H10: =F10+G10 -> 24 | I10: 192.00 $ | J10: 5 | K10: =H10-J10 -> 19 | L10: =I10*K10 -> $3,648.00 | M10: =I10*J10 -> $960.00
A11: 103 | B11: AGUA BOTELLITAS | E11: UNID | F11: 160 | G11: 400 | H11: 560 | I11: 6.50 $ | J11: 160 | K11: 400 | L11: $2,600.00 | M11: $1,040.00
A12: 104 | B12: AXION EN PASTA | E12: UNID | F12: 4 | G12: 16 | H12: 20 | I12: 116.00 $ | J12: 10 | K12: 10 | L12: $1,160.00 | M12: $1,160.00
A13: 105 | B13: BAYGON 400ML | E13: UNID | F13: 9 | H13: 9 | I13: 349.00 $ | J13: 4 | K13: 5 | L13: $1,745.00 | M13: $1,396.00
A14: 106 | B14: BOLIGRAFOS AZULES | E14: UNID | F14: 22 | G14: 72 | H14: 94 | I14: 10.10 $ | J14: 51 | K14: 43 | L14: $434.30 | M14: $515.10
A15: 107 | B15: BOLIGRAFOS NEGROS | E15: UNID | F15: 38 | H15: 38 | I15: 7.00 $ | J15: 2 | K15: 36 | L15: $252.00 | M15: $14.00
A16: 108 | B16: BOLIGRAFOS ROJOS | E16: UNID | F16: 105 | H16: 105 | I16: 7.00 $ | J16: 12 | K16: 93 | L16: $651.00 | M16: $84.00
A17: 109 | B17: BOLIGRAFOS VERDES | E17: UNID | F17: 9 | H17: 9 | I17: 10.00 $ | J17: 1 | K17: 8 | L17: $80.00 | M17: $10.00
A18: 110 | B18: BORRANTE DE LECHE | E18: UNID | F18: 8 | H18: 8 | I18: 8.00 $ | K18: 8 | L18: $64.00 | M18: 0
A19: 111 | B19: BRILLO GRUESO 12/1 ROMANO | E19: UNID | F19: 20 | G19: 12 | H19: 32 | I19: 69.60 $ | J19: 4 | K19: 28 | L19: $1,948.80 | M19: $278.40
A20: 112 | B20: BRILLO GRIS | E20: UNID | F20: 2 | G20: 12 | H20: 14 | I20: 69.60 $ | J20: 2 | K20: 12 | L20: $835.20 | M20: $139.20
A21: 113 | B21: BRILLO VERDE Y ESPONJA | E21: UNID | F21: 7 | H21: 7 | I21: 57.80 $ | J21: 1 | K21: 6 | L21: $346.80 | M21: $57.80
A22: 114 | B22: CAJA PLASTICAS DE 27 GL NEGRA | E22: UNID | F22: 13 | H22: 13 | I22: 1,350.00 $ | J22: 4 | K22: 9 | L22: $12,150.00 | M22: $5,400.00
A23: 115 | B23: CAJITA DE GRAPAS ESTÁNDAR 26/6 | E23: UNID | F23: 11 | H23: 11 | I23: 47.17 $ | J23: 4 | K23: 7 | L23: $330.19 | M23: $188.68
A24: 116 | B24: CALCULADORA | E24: UNID | F24: 3 | H24: 3 | I24: 359.90 $ | K24: 3 | L24: $1,079.70 | M24: 0
A25: 117 | B25: CARPETA NEGRA #1 | E25: UNID | F25: 4 | H25: 4 | I25: 469.00 $ | K25: =H25-J25 -> 4 | L25: $1,876.00 | M25: 0
A26: 118 | B26: CARPETA NEGRA # 2 | E26: UNID | F26: 2 | H26: 2 | I26: 178.20 $ | K26: =H26-J26 -> 2 | L26: $356.40 | M26: 0
A27: 119 | B27: CARPETAS # 3 | E27: UNID | F27: 2 | H27: 2 | I27: 147.50 $ | K27: 2 | L27: $295.00 | M27: 0
A28: 120 | B28: CHINCHETAS | E28: CAJAS | F28: 4 | H28: 4 | I28: 84.75 $ | K28: 4 | L28: $339.00 | M28: 0
A29: 121 | B29: CEPILLO DE INODORO | E29: UNID | F29: 2 | H29: 2 | I29: 159.30 $ | J29: 2 | K29: 0 | L29: 0 | M29: $318.60
A30: 122 | B30: CERA PARA CONTAR | E30: UNID | F30: 10 | H30: 10 | I30: 60.00 $ | K30: 10 | L30: $600.00 | M30: 0
A31: 123 | B31: CINTA MASKING TAPE 3/4 VISIBLE | E31: UNID | F31: 34 | H31: 34 | I31: 75.00 $ | J31: 1 | K31: 33 | L31: $2,475.00 | M31: $75.00
A32: 124 | B32: CINTA DE EMPAQUE | E32: UNID | F32: 2 | G32: 6 | H32: 8 | I32: 47.20 $ | J32: 4 | K32: 4 | L32: $188.80 | M32: $188.80
A33: 125 | B33: CINTA MAGICA SUMADORA | E33: UNID | F33: 2 | H33: 2 | I33: 76.70 $ | K33: 2 | L33: $153.40 | M33: 0
A34: 126 | B34: CLIPS JUMBO | E34: UNID | F34: 23 | H34: 23 | I34: 38.00 $ | J34: 12 | K34: 11 | L34: $418.00 | M34: $456.00
A35: 127 | B35: CINTA MASKING TAPE CREMA | E35: UNID | F35: 0 | G35: 24 | H35: 24 | I35: 46.00 $ | J35: 10 | K35: 14 | L35: $644.00 | M35: $460.00
A36: 128 | B36: CUBO PLATICOS DE AGUJA DESECHABLES | E36: UNID | F36: 12 | H36: 12 | I36: 50.00 $ | J36: 11 | K36: 1 | L36: $50.00 | M36: $550.00
A37: 129 | B37: CLIPS BILLETERO 32 MM 12/1 | E37: UNID | F37: 36 | H37: 36 | I37: 123.90 $ | K37: 36 | L37: $4,460.40 | M37: 0
A38: 130 | B38: CLIPS BILLETERO 41 MM 12/1 | E38: UNID | F38: 27 | H38: 27 | I38: 171.10 $ | K38: 27 | L38: $4,619.70 | M38: 0
A39: 131 | B39: CLIPS BILLETERO 51 MM 12/1 | E39: UNID | F39: 24 | H39: 24 | I39: 230.10 $ | J39: 2 | K39: 22 | L39: $5,062.20 | M39: $460.20
A40: 132 | B40: CLORO | E40: GALON | F40: 19 | G40: 40 | H40: 59 | I40: 91.53 $ | J40: 24 | K40: 35 | L40: $3,203.55 | M40: $2,196.72
A41: 133 | B41: CONTROL DE LIQUIDO(ENFERMERIA) | E41: TALONARIO | F41: 11 | H41: 11 | I41: 1,200.00 $ | K41: 11 | L41: $13,200.00 | M41: 0
A42: 134 | B42: CUADERNOS COCIDOS | E42: UNID | F42: 0 | G42: 24 | H42: 24 | I42: 53.00 $ | J42: 11 | K42: 13 | L42: $689.00 | M42: $583.00
A43: 135 | B43: CUCHARA 25/1 | E43: CAJA | F43: 0 | G43: 3 | H43: 3 | I43: 631.30 $ | J43: 2 | K43: 1 | L43: $631.30 | M43: $1,262.60
A44: 136 | B44: ESCOBA C/PALO | E44: UNID | F44: 7 | H44: 7 | I44: 133.00 $ | J44: 4 | K44: 3 | L44: $399.00 | M44: $532.00
A45: 138 | B45: FOLDER AMARILLO OFICINA | E45: UNID | F45: 134 | G45: 500 | H45: =F45+G45 -> 634 | I45: 2.33 $ | J45: 359 | K45: 275 | L45: $640.75 | M45: $836.47
A46: 138 | B46: FOLDER VERDE 8 1/2 X 11 | E46: UNID | F46: 371 | H46: =F46+G46 -> 371 | I46: 4.95 $ | J46: 213 | K46: 158 | L46: $782.10 | M46: $1,054.35
A47: 139 | B47: FUNDA NEGRA 17 x22 GL PEQUEÑA | E47: PAQ | F47: 29 | H47: 29 | I47: 72.00 $ | K47: 29 | L47: $2,088.00 | M47: 0
A48: 140 | B48: FUNDA NEGRA #6 | E48: PAQ | F48: 30 | H48: 30 | I48: 36.58 $ | K48: 30 | L48: $1,097.40 | M48: 0
A49: 141 | B49: FUNDA ROJA #2 | E49: PAQ | F49: 25 | H49: 25 | I49: 20.00 $ | K49: 25 | L49: $500.00 | M49: 0
A50: 142 | B50: FUNDA AZULES #4 | E50: PAQ | F50: 35 | H50: 35 | I50: 26.00 $ | K50: 35 | L50: $910.00 | M50: 0
A51: 143 | B51: FUNDA NEGRA MEDIANA 30 GL | E51: PAQ | F51: 23 | H51: 23 | I51: 1,080.00 $ | J51: 5 | K51: 18 | L51: $19,440.00 | M51: $5,400.00
A52: 144 | B52: FUNDA NEGRA GRANDE 55 GL | E52: PAQ | F52: 7 | H52: 7 | I52: 616.00 $ | K52: 7 | L52: $4,312.00 | M52: 0
A53: 145 | B53: FUNDA ROJA PEQUENAS 17 GL | E53: PAQ | F53: 8 | H53: 8 | I53: 240.00 $ | J53: 3 | K53: 5 | L53: $1,200.00 | M53: $720.00
A54: 146 | B54: FUNDA ROJA GRANDE 55 gl | E54: UNID | F54: 3 | H54: 3 | I54: 1,030.10 $ | K54: 3 | L54: $3,090.30 | M54: 0
A55: 147 | B55: FUNDA ROJA MEDIANA 30 GL | E55: PAQ | F55: 18 | H55: 18 | I55: 450.36 $ | J55: 8 | K55: 10 | L55: $4,503.60 | M55: $3,602.88
A56: 148 | B56: GALON JABON LIQUIDO DE MANO | E56: GALON | F56: 4 | H56: 4 | I56: 171.10 $ | K56: 4 | L56: $684.40 | M56: 0
A57: 149 | B57: GANCHOS P/FOLDER MH | E57: CAJA | F57: 8 | H57: 8 | I57: 141.60 $ | K57: 8 | L57: $1,132.80 | M57: 0
A58: 150 | B58: GALON JABON DE CUABA | E58: GALON | F58: 4 | H58: 4 | I58: 165.25 $ | J58: 1 | K58: 3 | L58: $495.75 | M58: $165.25
A59: 151 | B59: GOMITAS | E59: CAJA | F59: 6 | H59: 6 | I59: 45.00 $ | J59: 6 | K59: 0 | L59: 0 | M59: $270.00
A60: 152 | B60: GRAPADORA NEGRA | E60: CAJA | F60: 1 | G60: 4 | H60: 5 | I60: 320.00 $ | J60: 5 | K60: 0 | L60: 0 | M60: $1,600.00
A61: 153 | B61: GUANTES MULTIUSOS | E61: UNID | F61: 5 | G61: 12 | H61: 17 | I61: 666.36 $ | J61: 11 | K61: 6 | L61: $3,998.16 | M61: $7,329.96
A62: 154 | B62: HISTORIA CLINICA PERINATAL | E62: TALONARIO | F62: 9 | H62: 9 | I62: 1,298.00 $ | J62: 1 | K62: 8 | L62: $10,384.00 | M62: $1,298.00
A63: 155 | B63: HOJA DE ANOTACION ENFERMERIA | E63: RESMA | F63: 4 | H63: 4 | I63: 826.00 $ | K63: 4 | L63: $3,304.00 | M63: 0
A64: 156 | B64: HOJA DE ADMICION | E64: RESMA | F64: 5 | H64: 5 | I64: 165.00 $ | K64: 5 | L64: $825.00 | M64: 0
A65: 157 | B65: HOJA DE ATENCION DIARIA | E65: TALONARIO | F65: 3 | H65: 3 | I65: 994.00 $ | K65: 3 | L65: $2,982.00 | M65: 0
A66: 158 | B66: HOJA DE CERTIFICACION | E66: RESMA | F66: 2 | H66: 2 | I66: 1,475.00 $ | K66: 2 | L66: $2,950.00 | M66: 0
A67: 159 | B67: HOJA DE CONSULTA EXTERNA | E67: TALONARIO | F67: 19 | H67: 19 | I67: 994.00 $ | J67: 4 | K67: 15 | L67: $14,910.00 | M67: $3,976.00
A68: 160 | B68: HOJA PACIENTE DIETA | E68: TALONARIO | F68: 18 | H68: 18 | I68: 800.00 $ | K68: 18 | L68: $14,400.00 | M68: 0
A69: 161 | B69: HOJA DE DIRECCION CUIDADO DE ENFERMERIA | E69: TALONARIO | F69: 32 | H69: 32 | I69: 994.00 $ | K69: 32 | L69: $31,808.00 | M69: 0
A70: 162 | B70: HOJA DE ENFER EN AREA EMERGENCIA FO63 | E70: TALONARIO | F70: 17 | H70: 17 | I70: 994.00 $ | K70: 17 | L70: $16,898.00 | M70: 0
A71: 163 | B71: HOJA DE ENFERMERIA | E71: TALONARIO | F71: 8 | H71: 8 | I71: 1,298.00 $ | K71: 8 | L71: $10,384.00 | M71: 0
A72: 164 | B72: HOJA DE EVOLUCION | E72: TALONARIO | F72: 5 | H72: 5 | I72: 294.00 $ | K72: 5 | L72: $1,470.00 | M72: 0
A73: 165 | B73: HOJA DE ANESTESIA | E73: TALONARIO | F73: 13 | H73: 13 | I73: 185.00 $ | K73: 13 | L73: $2,405.00 | M73: 0
A74: 166 | B74: HOJA DE HISTORIAL CLINICO | E74: TALONARIO | F74: 46 | H74: 46 | I74: 195.00 $ | J74: 5 | K74: 41 | L74: =I74*K74 -> $7,995.00 | M74: =I74*J74 -> $975.00
A75: 167 | B75: HOJA D KARDEX D MEDICAMENTO SOLUCIONES | E75: TALONARIO | F75: 17 | H75: 17 | I75: 1,298.00 $ | K75: 17 | L75: $22,066.00 | M75: 0
A76: 168 | B76: HOJA DE REFERENCIA Y CONTRA REFERENCIA | E76: TALONARIO | F76: 11 | H76: 11 | I76: 826.00 $ | K76: 11 | L76: $9,086.00 | M76: 0
A77: 169 | B77: HOJA DE GLICEMIA | E77: TALONARIO | F77: 3 | H77: 3 | I77: 350.00 $ | J77: 3 | K77: 0 | L77: 0 | M77: $1,050.00
A78: 170 | B78: HOJA RESUMEN MEDICO DE EGRESO | E78: RESMA | F78: 2 | H78: 2 | I78: 826.00 $ | K78: 2 | L78: $1,652.00 | M78: 0
A79: 171 | B79: HOJA SEGURIDAD CIRUGIA | E79: RESMA | F79: 2 | H79: 2 | I79: 1,475.00 $ | K79: 2 | L79: $2,950.00 | M79: 0
A80: 172 | B80: HOJA DESIGNOGRAMA ENFERM | E80: TALONARIO | F80: 9 | H80: 9 | I80: 994.00 $ | K80: 9 | L80: $8,946.00 | M80: 0
A81: 173 | B81: HOJA KARDEX MED INTERNA INSUMOS | E81: TALONARIO | F81: 9 | H81: 9 | I81: 994.00 $ | K81: 9 | L81: $8,946.00 | M81: 0
A82: 174 | B82: HOJA LEGAL 8 1/2*14 RESMA | E82: RESMA | F82: 4 | H82: 4 | I82: 348.00 $ | J82: 1 | K82: 3 | L82: $1,044.00 | M82: $348.00
A83: 175 | B83: HOJA ORDEN MEDICA | E83: TALONARIO | F83: 27 | H83: 27 | I83: 800.00 $ | K83: 27 | L83: $21,600.00 | M83: 0
A84: 176 | B84: HOJA HISTORIAL OPERATORIO | E84: TALONARIO | F84: 5 | H84: 5 | I84: 1,299.00 $ | K84: 5 | L84: $6,495.00 | M84: 0
A85: 177 | B85: HOJA SIGNOS VITALES | E85: TALONARIO | F85: 10 | H85: 10 | I85: 1,200.00 $ | K85: 10 | L85: $12,000.00 | M85: 0
A86: 178 | B86: HOJA GRAFICA DE TEMPERATURA | E86: RESMA | F86: 1 | H86: 1 | I86: 994.00 $ | K86: 1 | L86: $994.00 | M86: 0
A87: 179 | B87: HOJAS TIMBRADA | E87: TALONARIO | F87: 10 | H87: 10 | I87: 1,350.00 $ | J87: 3 | K87: 7 | L87: $9,450.00 | M87: $4,050.00
A88: 180 | B88: HOJA DE CONFIRMACION DE CIRUGIA | E88: RESMA | F88: 1 | H88: 1 | I88: 1,298.00 $ | K88: 1 | L88: $1,298.00 | M88: 0
A89: 181 | B89: LABELSP/FOLDER | E89: UNID | F89: 5 | G89: 6 | H89: 11 | I89: 112.10 $ | J89: 3 | K89: 8 | L89: $896.80 | M89: $336.30
A90: 182 | B90: LAPIZ | E90: UNID | F90: 31 | H90: 31 | I90: 10.00 $ | K90: =H90-J90 -> 31 | L90: $310.00 | M90: 0
A91: 183 | B91: LIBRO BANCO VENTA SERVICIOS | E91: UNID | F91: 1 | H91: 1 | I91: 2,360.00 $ | K91: 1 | L91: $2,360.00 | M91: 0
A92: 184 | B92: TALONARIO DE OXIGENO | E92: TALONARIO | F92: 8 | H92: 8 | I92: 200.00 $ | K92: 8 | L92: $1,600.00 | M92: 0
A93: 185 | B93: LIBRO DE EMERGENCIA | E93: UNID | F93: 3 | H93: 3 | I93: 1,770.00 $ | J93: 2 | K93: 1 | L93: $1,770.00 | M93: $3,540.00
A94: 186 | B94: LIBRO DE LABORATORIO PACIENTE | E94: UNID | F94: 0 | H94: 0 | I94: 1,170.00 $ | K94: 0 | L94: 0 | M94: 0
A95: 187 | B95: LIBRO DE CONTROL DE PARASITOLOGIA COPROLOGICO | E95: UNID | F95: 1 | H95: 1 | I95: 1,170.00 $ | K95: 1 | L95: $1,170.00 | M95: 0
A96: 188 | B96: LIBRO DE PARTO Y NACIMIENTO | E96: UNID | F96: 3 | H96: 3 | I96: 1,170.00 $ | K96: 3 | L96: $3,510.00 | M96: 0
A97: 189 | B97: LIBRO DE CIRUGIA | E97: UNID | F97: 5 | H97: 5 | I97: 1,770.00 $ | K97: 5 | L97: $8,850.00 | M97: 0
A98: 190 | B98: LIBRO DE CONS REGISTRO VIH | E98: UNID | F98: 0 | H98: 0 | I98: 1,770.00 $ | K98: 0 | L98: 0 | M98: 0
A99: 191 | B99: LIBRO DE SEROLOGIA | E99: UNID | F99: 2 | H99: 2 | I99: 2,360.00 $ | K99: 2 | L99: $4,720.00 | M99: 0
A100: 192 | B100: LIBRO DE URIANALISIS | E100: UNID | F100: 1 | H100: 1 | I100: 2,360.00 $ | K100: 1 | L100: $2,360.00 | M100: 0
A101: 193 | B101: LIBRO HEMATOLOGIA | E101: UNID | F101: 2 | H101: 2 | I101: 2,000.00 $ | K101: 2 | L101: $4,000.00 | M101: 0
A102: 194 | B102: LIBRO QUIMICO | E102: UNID | F102: 2 | H102: 2 | I102: 2,360.00 $ | J102: 1 | K102: 1 | L102: $2,360.00 | M102: $2,360.00
A103: 195 | B103: LIBRO INTERNAMIENTO | E103: UNID | F103: 3 | H103: 3 | I103: 1,770.00 $ | K103: 3 | L103: $5,310.00 | M103: 0
A104: 196 | B104: LIBRO DE RAYOS X | E104: UNID | F104: 2 | H104: 2 | I104: 1,770.00 $ | K104: 2 | L104: $3,540.00 | M104: 0
A105: 197 | B105: LIBRO RECORD DE REGISTRO ADOLECENTE | E105: UNID | F105: 0 | H105: 0 | I105: 1,800.00 $ | K105: 0 | L105: 0 | M105: 0
A106: 198 | B106: LIQUID PAPER T/L CORRECTOR | E106: UNID | F106: 11 | H106: 11 | I106: 30.00 $ | J106: 10 | K106: 1 | L106: $30.00 | M106: $300.00
A107: 199 | B107: MARCADORES AZULES | E107: UNID | F107: 33 | H107: 33 | I107: 30.00 $ | J107: 6 | K107: 27 | L107: $810.00 | M107: $180.00
A108: 200 | B108: MARCADORES NEGROS | E108: UNID | F108: 34 | H108: 34 | I108: 30.00 $ | J108: 4 | K108: 30 | L108: $900.00 | M108: $120.00
A109: 201 | B109: MISTOLIN | E109: GALON | F109: 9 | G109: 40 | H109: 49 | I109: 104.00 $ | J109: 28 | K109: 21 | L109: $2,184.00 | M109: $2,912.00
A110: 202 | B110: PAPEL CARBON 8 1/2*11 | E110: UNID | F110: 25 | H110: =F110+G110 -> 25 | I110: 325.00 $ | K110: 25 | L110: $8,125.00 | M110: 0
A111: 203 | B111: PAPEL HIGIENICO FARDO 48/1 | E111: UNID | F111: 179 | G111: 96 | H111: 275 | I111: 22.60 $ | J111: 147 | K111: 128 | L111: $2,892.80 | M111: $3,322.20
A112: 204 | B112: PAPEL MANILA NATURAL KRAF | E112: UNID | F112: 0 | G112: 2 | H112: 2 | I112: 3,916.00 $ | J112: 1 | K112: 1 | L112: $3,916.00 | M112: $3,916.00
A113: 205 | B113: PAPEL TOALLA 6/1 | E113: UNID | F113: 0 | G113: 24 | H113: 24 | I113: 95.38 $ | J113: 12 | K113: 12 | L113: $1,144.56 | M113: $1,144.56
A114: 206 | B114: PERFORADORA 2 | E114: UNID | F114: 0 | H114: 0 | I114: 306.08 $ | K114: 0 | L114: 0 | M114: 0
A115: 207 | B115: PERFORADORA 3 | E115: UNID | F115: 1 | H115: 1 | I115: 631.30 $ | K115: 1 | L115: $631.30 | M115: 0
A116: 208 | B116: PILA AAA PEQUEÑA | E116: UNID | F116: 30 | H116: 30 | I116: 54.00 $ | J116: 2 | K116: 28 | L116: $1,512.00 | M116: $108.00
A117: 209 | B117: PILA AA | E117: UNID | F117: 38 | H117: 38 | I117: 53.00 $ | J117: 6 | K117: 32 | L117: $1,696.00 | M117: $318.00
A118: 210 | B118: PAPEL CON DIVISION 200/1 OPTION | E118: CAJA | F118: 0 | G118: 2 | H118: 2 | I118: 1,085.00 $ | J118: 1 | K118: 1 | L118: $1,085.00 | M118: $1,085.00
A119: 211 | B119: PLATOS | E119: FARDO | F119: 7 | G119: 8 | H119: 15 | I119: 1,291.00 $ | J119: 9 | K119: 6 | L119: $7,746.00 | M119: $11,619.00
A120: 212 | B120: POS-IT 3*3 | E120: RESMA | F120: 0 | H120: 0 | I120: 33.63 $ | K120: 0 | L120: 0 | M120: 0
A121: 213 | B121: RECOJEDOR DE BASURA | E121: UNID | F121: 2 | G121: 6 | H121: 8 | I121: 109.25 $ | J121: 2 | K121: 6 | L121: $655.50 | M121: $218.50
A122: 214 | B122: RESALTADOR | E122: UNID | F122: 13 | H122: 13 | I122: 39.00 $ | J122: 1 | K122: 12 | L122: $468.00 | M122: $39.00
A123: 215 | B123: RESMA DE CONTROL DE EXISTENCIA | E123: RESMA | F123: 3 | H123: 3 | I123: 1,298.00 $ | K123: 3 | L123: $3,894.00 | M123: 0
A124: 216 | B124: RESMA HOJA DE MAQUINA 8/2 *11 | E124: RESMA | F124: 35 | G124: 100 | H124: 135 | I124: 228.00 $ | J124: 62 | K124: 73 | L124: $16,644.00 | M124: $14,136.00
A125: 217 | B125: ROLLO DE PAPEL SUMADORA | E125: UNID | F125: 4 | G125: 12 | H125: 16 | I125: 23.00 $ | K125: 16 | L125: $368.00 | M125: 0
A126: 218 | B126: ROTULO PARA SOLUCION Y MEDICAMENTOS | E126: UNID | F126: 950 | H126: 950 | I126: 6.50 $ | J126: 100 | K126: 850 | L126: $5,525.00 | M126: $650.00
A127: 219 | B127: SACA GRAPA | E127: UNID | F127: 6 | H127: 6 | I127: 30.00 $ | J127: 3 | K127: 3 | L127: $90.00 | M127: $90.00
A128: 220 | B128: SACAPUNTA METAL | E128: UNID | F128: 20 | H128: 20 | I128: 15.00 $ | K128: 20 | L128: $300.00 | M128: 0
A129: 221 | B129: SACO DE DETERGENTE | E129: UNID | F129: 2 | G129: 3 | H129: 5 | I129: 1,100.00 $ | J129: 3 | K129: 2 | L129: $2,200.00 | M129: $3,300.00
A130: 222 | B130: SERVILLETA C-FOLD 24/100 XCELENT | E130: UNID | F130: 28 | G130: 96 | H130: 124 | I130: 24.50 $ | J130: 22 | K130: 102 | L130: $2,499.00 | M130: $539.00
A131: 223 | B131: SERVILLETAS DE BINGO 60/1 | E131: UNID | F131: 310 | G131: 180 | H131: 490 | I131: 11.50 $ | J131: 174 | K131: 316 | L131: $3,634.00 | M131: $2,001.00
A132: 224 | B132: SOBRE CARTA VENTANILLA | E132: UNID | F132: 900 | H132: 900 | I132: 1.85 $ | K132: 900 | L132: $1,665.00 | M132: 0
A133: 225 | B133: SOBRE MANILA 9*12 500 UNID | E133: UNID | F133: 390 | H133: 390 | I133: 13.85 $ | K133: 390 | L133: $5,401.50 | M133: 0
A134: 226 | B134: SOBRE MANILA 14*17 1000 UNIDAD | E134: UNID | F134: 910 | H134: 910 | I134: 13.85 $ | K134: 910 | L134: $12,603.50 | M134: 0
A135: 227 | B135: SOBRE MANILA 10*14 DE 500 UNID | E135: UNID | F135: 260 | H135: 260 | I135: 7.10 $ | J135: 10 | K135: 250 | L135: $1,775.00 | M135: $71.00
A136: 228 | B136: SOBRE TIMBRADO | E136: UNID | F136: 300 | H136: 300 | I136: 13.00 $ | J136: 15 | K136: 285 | L136: $3,705.00 | M136: $195.00
A137: 229 | B137: SUAPER JUMBO | E137: GALON | F137: 5 | G137: 6 | H137: 11 | I137: 175.00 $ | J137: 8 | K137: 3 | L137: $525.00 | M137: $1,400.00
A138: 230 | B138: SUAVITEL | E138: GALON | F138: 4 | H138: 4 | I138: 148.31 $ | J138: 3 | K138: 1 | L138: =I138*K138 -> $148.31 | M138: =I138*J138 -> $444.93
A139: 231 | B139: TALONARIO DE PATOLOGIA | E139: TALONARIO | F139: 25 | H139: 25 | I139: 70.80 $ | K139: 25 | L139: $1,770.00 | M139: 0
A140: 232 | B140: TALONARIO HISTORIAL CLINICO EMERGENCIA | E140: TALONARIO | F140: 0 | H140: 0 | I140: 275.00 $ | K140: 0 | L140: 0 | M140: 0
A141: 233 | B141: TALONARIO ORDEN MEDICA | E141: TALONARIO | F141: 25 | H141: 25 | I141: 275.00 $ | K141: 25 | L141: $6,875.00 | M141: 0
A142: 234 | B142: TALONARIO COPROLOGICO | E142: TALONARIO | F142: 96 | H142: 96 | I142: 88.35 $ | K142: 96 | L142: $8,481.60 | M142: 0
A143: 235 | B143: TALALONARIO HEMOTOLOGIA | E143: TALONARIO | F143: 59 | H143: 59 | I143: 88.35 $ | J143: 10 | K143: 49 | L143: $4,329.15 | M143: $883.50
A144: 236 | B144: TALONARIO CONFIMACION DE QUIRURGICA | E144: TALONARIO | F144: 5 | H144: 5 | I144: 185.00 $ | K144: 5 | L144: $925.00 | M144: 0
A145: 237 | B145: TALONARIO LABORATORIO CLINICO | E145: TALONARIO | F145: 73 | H145: 73 | I145: 37.00 $ | J145: 36 | K145: 37 | L145: $1,369.00 | M145: $1,332.00
A146: 238 | B146: TALONARIO PARTOGRAMA POSPARTO | E146: TALONARIO | F146: 9 | H146: 9 | I146: 185.00 $ | K146: 9 | L146: $1,665.00 | M146: 0
A147: 239 | B147: TALONARIO HISTORIAL OPERATORIO | E147: RESMA | F147: 1 | H147: 1 | I147: 185.00 $ | K147: 1 | L147: $185.00 | M147: 0
A148: 240 | B148: TALONARIO URIANALISIS | E148: TALONARIO | F148: 118 | H148: 118 | I148: 53.10 $ | J148: 10 | K148: 108 | L148: $5,734.80 | M148: $531.00
A149: 241 | B149: TALONARIO REQUISICION DE FARMACIA | E149: TALONARIO | F149: 7 | H149: 7 | I149: 413.00 $ | J149: 1 | K149: 6 | L149: $2,478.00 | M149: $413.00
A150: 242 | B150: TALONARIO CUIDADO DE ENFERERIA VIH MEDIA | E150: TALONARIO | F150: 8 | H150: 8 | I150: 275.00 $ | K150: 8 | L150: $2,200.00 | M150: 0
A151: 243 | B151: TALONARIO CONCENTIMIENTO INFORMADO LARGO | E151: TALONARIO | F151: 3 | H151: 3 | I151: 756.00 $ | K151: 3 | L151: $2,268.00 | M151: 0
A152: 244 | B152: TALONARIO DE CLASIFICACION | E152: TALONARIO | F152: 30 | H152: 30 | I152: 756.00 $ | K152: 30 | L152: $22,680.00 | M152: 0
A153: 245 | B153: TALONARIO DE CONTROL TEMPERATURA | E153: TALONARIO | F153: 15 | H153: 15 | I153: 294.00 $ | K153: 15 | L153: $4,410.00 | M153: 0
A154: 246 | B154: TALONARIO DE CUOTA DE CONTRIBUCION | E154: TALONARIO | F154: 10 | H154: 10 | I154: 185.00 $ | K154: =H154-J154 -> 10 | L154: $1,850.00 | M154: 0
A155: 247 | B155: TALONARIO PROTOCOLO ATENCION AL PARTO | E155: TALONARIO | F155: 8 | H155: 8 | I155: 185.00 $ | K155: 8 | L155: $1,480.00 | M155: 0
A156: 248 | B156: TALONARIO HOJA DE KARDEX INSUMO | E156: TALONARIO | F156: 9 | H156: 9 | I156: 994.00 $ | K156: 9 | L156: $8,946.00 | M156: 0
A157: 249 | B157: TALONARIO SOLICITUD DE ALMACEN | E157: TALONARIO | F157: 6 | H157: 6 | I157: 224.00 $ | K157: 6 | L157: $1,344.00 | M157: 0
A158: 250 | B158: TALONARIO SALIDA ALMACEN | E158: TALONARIO | F158: 24 | H158: 24 | I158: 275.00 $ | K158: 24 | L158: $6,600.00 | M158: 0
A159: 251 | B159: TAPA DE VASOS #12 CLEA 10/100 | E159: UNID | F159: 3 | G159: 10 | H159: 13 | I159: 224.00 $ | J159: 13 | K159: 0 | L159: 0 | M159: $2,912.00
A160: 252 | B160: TARJETA DE CITA | E160: UNID | F160: 30 | G160: 1000 | H160: 1030 | I160: 2.75 $ | J160: 300 | K160: 730 | L160: $2,007.50 | M160: $825.00
A161: 253 | B161: TARJETA DE EXPEDIENTE | E161: UNID | F161: 1600 | H161: 1600 | I161: 4.50 $ | K161: 1600 | L161: $7,200.00 | M161: 0
A162: 254 | B162: TALONARIO RECETARIO NORMAL | E162: TALONARIO | F162: 987 | H162: 987 | I162: 53.65 $ | J162: 61 | K162: 926 | L162: $49,679.90 | M162: $3,272.65
A163: 255 | B163: TIJERAS | E163: UNID | F163: 2 | H163: 2 | I163: 62.54 $ | J163: 1 | K163: 1 | L163: $62.54 | M163: $62.54
A164: 256 | B164: TINTA PARA SELLO AZUL | E164: UNID | F164: 11 | H164: 11 | I164: 106.00 $ | J164: 3 | K164: 8 | L164: $848.00 | M164: $318.00
A165: 257 | B165: TOALLA MICROFIBRA16´´ *16´´ | E165: PAQU | F165: 17 | H165: 17 | I165: 49.56 $ | J165: 8 | K165: 9 | L165: $446.04 | M165: $396.48
A166: 258 | B166: ENVASES PLASTICOS 4 OZ | E166: UNID | F166: 14 | G166: 20 | H166: 34 | I166: 147.00 $ | J166: 34 | K166: 0 | L166: 0 | M166: $4,998.00
A167: 259 | B167: TAPAS PLASTICAS 4 OZ | E167: PAQU | F167: 14 | G167: 20 | H167: 34 | I167: 137.00 $ | J167: 34 | K167: 0 | L167: 0 | M167: $4,658.00
A168: 260 | B168: VASO 12 CAJA 40/25 FOAM | E168: PAQU | F168: 123 | G168: 80 | H168: 203 | I168: 53.20 $ | J168: 73 | K168: 130 | L168: $6,916.00 | M168: $3,883.60
A169: 261 | B169: VASO # 5 | E169: PAQU | F169: 26 | G169: 100 | H169: 126 | I169: 55.00 $ | J169: 17 | K169: 109 | L169: $5,995.00 | M169: $935.00
A170: 262 | B170: VASOS #7 | E170: PAQU | F170: 63 | G170: 100 | H170: 163 | I170: 38.94 $ | J170: 123 | K170: 40 | L170: $1,557.60 | M170: $4,789.62
L171: =SUM(L9:L170) -> $636,936.40
J172: TOTAL DE COMSUMO | L172: =SUM(M9:M171) -> $138,533.89
A173: 261 | B173: VASO # 5 | E173: PAQU | F173: 26 | G173: 100 | H173: =F173+G173 -> 126 | I173: 55.00 $ | J173: 17 | K173: =H173-J173 -> 109 | L173: =I173*K173 -> $5,995.00 | M173: =I173*J173 -> $935.00
A174: 262 | B174: VASOS #7 | E174: PAQU | F174: 63 | G174: 100 | H174: 163 | I174: 38.94 $ | J174: 123 | K174: 40 | L174: $1,557.60 | M174: $4,789.62
L175: =SUM(L13:L174) -> $1,412,551.29
J176: TOTAL DE CONSUMO | L176: =SUM(M13:M175) -> $138,122.51

Sheet NOVIEMBRE
K11: 2025-11-30
A12: INVENTARIO DE ALMACEN
A13: CODIGO | B13: DESCRIPCION DEL PRODUCTO | E13: UNIDAD MEDIDA | F13: CANTIDAD | G13: ENTRADA | H13: TOTAL | I13: PRECIO | J13: SALIDA DE USO MENSUAL | K13: CANTIDAD ACTIVA EN ALMACEN | L13: VALOR TOTAL ACTIVO | M13: VALORDE TOTAL CONSUMO
A14: 101 | B14: ACORDEON 10*12 CARTON PIEDRA | E14: UNID | F14: 0 | H14: =F14+G14 -> 0 | I14: 744.00 $ | K14: =H14-J14 -> 0 | L14: =I14*K14 -> 0 | M14: =I14*J14 -> 0
A15: 102 | B15: AMBIENTADOR SPRAY | E15: UNID | F15: 19 | H15: =F15+G15 -> 19 | I15: 192.00 $ | J15: 5 | K15: =H15-J15 -> 14 | L15: =I15*K15 -> $2,688.00 | M15: =I15*J15 -> $960.00
A16: 103 | B16: AGUA BOTELLITAS | E16: UNID | F16: 400 | H16: 400 | I16: 6.50 $ | J16: 100 | K16: 300 | L16: $1,950.00 | M16: $650.00
A17: 104 | B17: AXION EN PASTA | E17: UNID | F17: 10 | H17: 10 | I17: 116.00 $ | J17: 7 | K17: 3 | L17: $348.00 | M17: $812.00
A18: 105 | B18: BAYGON 400ML | E18: UNID | F18: 5 | H18: 5 | I18: 349.00 $ | J18: 3 | K18: 2 | L18: $698.00 | M18: $1,047.00
A19: 106 | B19: BOLIGRAFOS AZULES | E19: UNID | F19: 43 | H19: 43 | I19: 10.10 $ | J19: 18 | K19: 25 | L19: $252.50 | M19: $181.80
A20: 107 | B20: BOLIGRAFOS NEGROS | E20: UNID | F20: 36 | H20: 36 | I20: 7.00 $ | K20: 36 | L20: $252.00 | M20: 0
A21: 108 | B21: BOLIGRAFOS ROJOS | E21: UNID | F21: 93 | H21: 93 | I21: 7.00 $ | J21: 2 | K21: 91 | L21: $637.00 | M21: $14.00
A22: 109 | B22: BOLIGRAFOS VERDES | E22: UNID | F22: 8 | H22: 8 | I22: 10.00 $ | K22: 8 | L22: $80.00 | M22: 0
A23: 110 | B23: BORRANTE DE LECHE | E23: UNID | F23: 8 | H23: 8 | I23: 8.00 $ | K23: 8 | L23: $64.00 | M23: 0
A24: 111 | B24: BRILLO GRUESO 12/1 ROMANO | E24: UNID | F24: 28 | H24: 28 | I24: 69.60 $ | K24: 28 | L24: $1,948.80 | M24: 0
A25: 112 | B25: BRILLO GRIS | E25: UNID | F25: 12 | H25: 12 | I25: 69.60 $ | K25: 12 | L25: $835.20 | M25: 0
A26: 113 | B26: BRILLO VERDE Y ESPONJA | E26: UNID | F26: 6 | H26: 6 | I26: 57.80 $ | K26: 6 | L26: $346.80 | M26: 0
A27: 114 | B27: CAJA PLASTICAS DE 27 GL NEGRA | E27: UNID | F27: 9 | H27: 9 | I27: 1,350.00 $ | K27: 9 | L27: $12,150.00 | M27: 0
A28: 115 | B28: CAJITA DE GRAPAS ESTÁNDAR 26/6 | E28: UNID | F28: 7 | H28: 7 | I28: 47.17 $ | J28: 4 | K28: 3 | L28: $141.51 | M28: $188.68
A29: 116 | B29: CALCULADORA | E29: UNID | F29: 3 | H29: 3 | I29: 359.90 $ | K29: 3 | L29: $1,079.70 | M29: 0
A30: 117 | B30: CARPETA NEGRA #1 | E30: UNID | F30: 4 | H30: 4 | I30: 469.00 $ | K30: =H30-J30 -> 4 | L30: $1,876.00 | M30: 0
A31: 118 | B31: CARPETA NEGRA # 2 | E31: UNID | F31: 2 | H31: 2 | I31: 178.20 $ | K31: 2 | L31: $356.40 | M31: 0
A32: 119 | B32: CARPETAS # 3 | E32: UNID | F32: 2 | H32: 2 | I32: 147.50 $ | K32: 2 | L32: $295.00 | M32: 0
A33: 120 | B33: CHINCHETAS | E33: CAJAS | F33: 4 | H33: 4 | I33: 84.75 $ | K33: 4 | L33: $339.00 | M33: 0
A34: 121 | B34: CEPILLO DE INODORO | E34: UNID | F34: 0 | H34: 0 | I34: 159.30 $ | K34: 0 | L34: 0 | M34: 0
A35: 122 | B35: CERA PARA CONTAR | E35: UNID | F35: 10 | H35: 10 | I35: 60.00 $ | K35: 10 | L35: $600.00 | M35: 0
A36: 123 | B36: CINTA MASKING TAPE 3/4 VISIBLE | E36: UNID | F36: 33 | H36: 33 | I36: 75.00 $ | K36: 33 | L36: $2,475.00 | M36: 0
A37: 124 | B37: CINTA DE EMPAQUE | E37: UNID | F37: 4 | H37: 4 | I37: 47.20 $ | K37: 4 | L37: $188.80 | M37: 0
A38: 125 | B38: CINTA MAGICA SUMADORA | E38: UNID | F38: 2 | H38: 2 | I38: 76.70 $ | K38: 2 | L38: $153.40 | M38: 0
A39: 126 | B39: CLIPS JUMBO | E39: UNID | F39: 11 | H39: 11 | I39: 38.00 $ | J39: 4 | K39: 7 | L39: $266.00 | M39: $152.00
A40: 127 | B40: CINTA MASKING TAPE CREMA | E40: UNID | F40: 14 | H40: 14 | I40: 46.00 $ | J40: 8 | K40: 6 | L40: $276.00 | M40: $368.00
A41: 128 | B41: CUBO PLATICOS DE AGUJA DESECHABLES | E41: UNID | F41: 1 | H41: 1 | I41: 50.00 $ | J41: 1 | K41: 0 | L41: 0 | M41: $50.00
A42: 129 | B42: CLIPS BILLETERO 32 MM 12/1 | E42: UNID | F42: 36 | H42: 36 | I42: 123.90 $ | K42: 36 | L42: $4,460.40 | M42: 0
A43: 130 | B43: CLIPS BILLETERO 41 MM 12/1 | E43: UNID | F43: 27 | H43: 27 | I43: 171.10 $ | K43: 27 | L43: $4,619.70 | M43: 0
A44: 131 | B44: CLIPS BILLETERO 51 MM 12/1 | E44: UNID | F44: 22 | H44: 22 | I44: 230.10 $ | K44: 22 | L44: $5,062.20 | M44: 0
A45: 132 | B45: CLORO | E45: GALON | F45: 35 | H45: 35 | I45: 91.53 $ | J45: 16 | K45: 19 | L45: $1,739.07 | M45: $1,464.48
A46: 133 | B46: CONTROL DE LIQUIDO(ENFERMERIA) | E46: TALONARIO | F46: 11 | H46: 11 | I46: 1,200.00 $ | K46: 11 | L46: $13,200.00 | M46: 0
A47: 134 | B47: CUADERNOS COCIDOS | E47: UNID | F47: 13 | H47: 13 | I47: 53.00 $ | J47: 2 | K47: 11 | L47: $583.00 | M47: $106.00
A48: 135 | B48: CUCHARA 25/1 | E48: CAJA | F48: 1 | H48: 1 | I48: 631.30 $ | J48: 1 | K48: 0 | L48: 0 | M48: $631.30
A49: 136 | B49: ESCOBA C/PALO | E49: UNID | F49: 3 | H49: 3 | I49: 133.00 $ | K49: 3 | L49: $399.00 | M49: 0
A50: 138 | B50: FOLDER AMARILLO OFICINA | E50: UNID | F50: 275 | H50: =F50+G50 -> 275 | I50: 2.33 $ | K50: 275 | L50: $640.75 | M50: 0
A51: 138 | B51: FOLDER VERDE 8 1/2 X 11 | E51: UNID | F51: 158 | H51: 158 | I51: 4.95 $ | J51: 5 | K51: 153 | L51: $757.35 | M51: $24.75
A52: 139 | B52: FUNDA NEGRA 17 x22 GL PEQUEÑA | E52: PAQ | F52: 29 | H52: 29 | I52: 72.00 $ | J52: 6 | K52: 23 | L52: $1,656.00 | M52: $432.00
A53: 140 | B53: FUNDA NEGRA #6 | E53: PAQ | F53: 30 | H53: 30 | I53: 36.58 $ | J53: 1 | K53: 29 | L53: $1,060.82 | M53: $36.58
A54: 141 | B54: FUNDA ROJA #2 | E54: PAQ | F54: 25 | H54: 25 | I54: 20.00 $ | K54: 25 | L54: $500.00 | M54: 0
A55: 142 | B55: FUNDA AZULES #4 | E55: PAQ | F55: 35 | H55: 35 | I55: 26.00 $ | K55: 35 | L55: $910.00 | M55: 0
A56: 143 | B56: FUNDA NEGRA MEDIANA 30 GL | E56: PAQ | F56: 18 | H56: 18 | I56: 1,080.00 $ | J56: 6 | K56: 12 | L56: $12,960.00 | M56: $6,480.00
A57: 144 | B57: FUNDA NEGRA GRANDE 55 GL | E57: PAQ | F57: 7 | H57: 7 | I57: 616.00 $ | J57: 2 | K57: 5 | L57: $3,080.00 | M57: $1,232.00
A58: 145 | B58: FUNDA ROJA PEQUENAS 17 GL | E58: PAQ | F58: 5 | H58: 5 | I58: 240.00 $ | K58: 5 | L58: $1,200.00 | M58: 0
A59: 146 | B59: FUNDA ROJA GRANDE 55 gl | E59: UNID | F59: 3 | H59: 3 | I59: 1,030.10 $ | K59: 3 | L59: $3,090.30 | M59: 0
A60: 147 | B60: FUNDA ROJA MEDIANA 30 GL | E60: PAQ | F60: 10 | H60: 10 | I60: 450.36 $ | J60: 3 | K60: 7 | L60: $3,152.52 | M60: $1,351.08
A61: 148 | B61: GALON JABON LIQUIDO DE MANO | E61: GALON | F61: 4 | H61: 4 | I61: 171.10 $ | K61: 4 | L61: $684.40 | M61: 0
A62: 149 | B62: GANCHOS P/FOLDER MH | E62: CAJA | F62: 8 | H62: 8 | I62: 141.60 $ | J62: 1 | K62: 7 | L62: $991.20 | M62: $141.60
A63: 150 | B63: GALON JABON DE CUABA | E63: GALON | F63: 3 | H63: 3 | I63: 165.25 $ | J63: 1 | K63: 2 | L63: $330.50 | M63: $165.25
A64: 151 | B64: GOMITAS | E64: CAJA | F64: 0 | H64: 0 | I64: 45.00 $ | K64: 0 | L64: 0 | M64: 0
A65: 152 | B65: GRAPADORA NEGRA | E65: CAJA | F65: 0 | H65: 0 | I65: 320.00 $ | K65: 0 | L65: 0 | M65: 0
A66: 153 | B66: GUANTES MULTIUSOS | E66: UNID | F66: 6 | H66: 6 | I66: 666.36 $ | J66: 2 | K66: 4 | L66: $2,665.44 | M66: $1,332.72
A67: 154 | B67: HISTORIA CLINICA PERINATAL | E67: TALONARIO | F67: 8 | H67: 8 | I67: 1,298.00 $ | J67: 1 | K67: 7 | L67: $9,086.00 | M67: $1,298.00
A68: 155 | B68: HOJA DE ANOTACION ENFERMERIA | E68: RESMA | F68: 4 | H68: 4 | I68: 826.00 $ | K68: 4 | L68: $3,304.00 | M68: 0
A69: 156 | B69: HOJA DE ADMICION | E69: RESMA | F69: 5 | H69: 5 | I69: 165.00 $ | K69: 5 | L69: $825.00 | M69: 0
A70: 157 | B70: HOJA DE ATENCION DIARIA | E70: TALONARIO | F70: 3 | H70: 3 | I70: 994.00 $ | K70: 3 | L70: $2,982.00 | M70: 0
A71: 158 | B71: HOJA DE CERTIFICACION | E71: RESMA | F71: 2 | H71: 2 | I71: 1,475.00 $ | K71: 2 | L71: $2,950.00 | M71: 0
A72: 159 | B72: HOJA DE CONSULTA EXTERNA | E72: TALONARIO | F72: 15 | H72: 15 | I72: 994.00 $ | K72: 15 | L72: $14,910.00 | M72: 0
A73: 160 | B73: HOJA PACIENTE DIETA | E73: TALONARIO | F73: 18 | H73: 18 | I73: 800.00 $ | K73: 18 | L73: $14,400.00 | M73: 0
A74: 161 | B74: HOJA DE DIRECCION CUIDADO DE ENFERMERIA | E74: TALONARIO | F74: 32 | H74: 32 | I74: 994.00 $ | K74: 32 | L74: $31,808.00 | M74: 0
A75: 162 | B75: HOJA DE ENFER EN AREA EMERGENCIA FO63 | E75: TALONARIO | F75: 17 | H75: 17 | I75: 994.00 $ | K75: 17 | L75: $16,898.00 | M75: 0
A76: 163 | B76: HOJA DE ENFERMERIA | E76: TALONARIO | F76: 8 | H76: 8 | I76: 1,298.00 $ | K76: 8 | L76: $10,384.00 | M76: 0
A77: 164 | B77: HOJA DE EVOLUCION | E77: TALONARIO | F77: 5 | H77: 5 | I77: 294.00 $ | K77: 5 | L77: $1,470.00 | M77: 0
A78: 165 | B78: HOJA DE ANESTESIA | E78: TALONARIO | F78: 13 | H78: 13 | I78: 185.00 $ | J78: 1 | K78: 12 | L78: $2,220.00 | M78: $185.00
A79: 166 | B79: HOJA DE HISTORIAL CLINICO | E79: TALONARIO | F79: 41 | H79: =F79+G79 -> 41 | I79: 195.00 $ | K79: =H79-J79 -> 41 | L79: =I79*K79 -> $7,995.00 | M79: =I79*J79 -> 0
A80: 167 | B80: HOJA D KARDEX D MEDICAMENTO SOLUCIONES | E80: TALONARIO | F80: 17 | H80: 17 | I80: 1,298.00 $ | K80: 17 | L80: $22,066.00 | M80: 0
A81: 168 | B81: HOJA DE REFERENCIA Y CONTRA REFERENCIA | E81: TALONARIO | F81: 11 | H81: 11 | I81: 826.00 $ | K81: 11 | L81: $9,086.00 | M81: 0
A82: 169 | B82: HOJA DE GLICEMIA | E82: TALONARIO | F82: 0 | H82: 0 | I82: 350.00 $ | K82: 0 | L82: 0 | M82: 0
A83: 170 | B83: HOJA RESUMEN MEDICO DE EGRESO | E83: RESMA | F83: 2 | H83: 2 | I83: 826.00 $ | K83: 2 | L83: $1,652.00 | M83: 0
A84: 171 | B84: HOJA SEGURIDAD CIRUGIA | E84: RESMA | F84: 2 | H84: 2 | I84: 1,475.00 $ | K84: 2 | L84: $2,950.00 | M84: 0
A85: 172 | B85: HOJA DESIGNOGRAMA ENFERM | E85: TALONARIO | F85: 9 | H85: 9 | I85: 994.00 $ | K85: 9 | L85: $8,946.00 | M85: 0
A86: 173 | B86: HOJA KARDEX MED INTERNA INSUMOS | E86: TALONARIO | F86: 9 | H86: 9 | I86: 994.00 $ | K86: 9 | L86: $8,946.00 | M86: 0
A87: 174 | B87: HOJA LEGAL 8 1/2*14 RESMA | E87: RESMA | F87: 3 | H87: 3 | I87: 348.00 $ | J87: 1 | K87: 2 | L87: $696.00 | M87: $348.00
A88: 175 | B88: HOJA ORDEN MEDICA | E88: TALONARIO | F88: 27 | H88: 27 | I88: 800.00 $ | K88: 27 | L88: $21,600.00 | M88: 0
A89: 176 | B89: HOJA HISTORIAL OPERATORIO | E89: TALONARIO | F89: 5 | H89: 5 | I89: 1,299.00 $ | K89: 5 | L89: $6,495.00 | M89: 0
A90: 177 | B90: HOJA SIGNOS VITALES | E90: TALONARIO | F90: 10 | H90: 10 | I90: 1,200.00 $ | K90: 10 | L90: $12,000.00 | M90: 0
A91: 178 | B91: HOJA GRAFICA DE TEMPERATURA | E91: RESMA | F91: 1 | H91: 1 | I91: 994.00 $ | K91: 1 | L91: $994.00 | M91: 0
A92: 179 | B92: HOJAS TIMBRADA | E92: TALONARIO | F92: 7 | H92: 7 | I92: 1,350.00 $ | K92: 7 | L92: $9,450.00 | M92: 0
A93: 180 | B93: HOJA DE CONFIRMACION DE CIRUGIA | E93: RESMA | F93: 1 | H93: 1 | I93: 1,298.00 $ | K93: 1 | L93: $1,298.00 | M93: 0
A94: 181 | B94: LABELSP/FOLDER | E94: UNID | F94: 8 | H94: 8 | I94: 112.10 $ | K94: 8 | L94: $896.80 | M94: 0
A95: 182 | B95: LAPIZ | E95: UNID | F95: 31 | H95: 31 | I95: 10.00 $ | K95: 31 | L95: $310.00 | M95: 0
A96: 183 | B96: LIBRO BANCO VENTA SERVICIOS | E96: UNID | F96: 1 | H96: 1 | I96: 2,360.00 $ | K96: 1 | L96: $2,360.00 | M96: 0
A97: 184 | B97: TALONARIO DE OXIGENO | E97: TALONARIO | F97: 8 | H97: 8 | I97: 200.00 $ | K97: 8 | L97: $1,600.00 | M97: 0
A98: 185 | B98: LIBRO DE EMERGENCIA | E98: UNID | F98: 1 | H98: 1 | I98: 1,770.00 $ | K98: 1 | L98: $1,770.00 | M98: 0
A99: 186 | B99: LIBRO DE LABORATORIO PACIENTE | E99: UNID | F99: 0 | H99: 0 | I99: 1,170.00 $ | K99: 0 | L99: 0 | M99: 0
A100: 187 | B100: LIBRO DE CONTROL DE PARASITOLOGIA COPROLOGICO | E100: UNID | F100: 1 | H100: 1 | I100: 1,170.00 $ | K100: 1 | L100: $1,170.00 | M100: 0
A101: 188 | B101: LIBRO DE PARTO Y NACIMIENTO | E101: UNID | F101: 3 | H101: 3 | I101: 1,170.00 $ | K101: 3 | L101: $3,510.00 | M101: 0
A102: 189 | B102: LIBRO DE CIRUGIA | E102: UNID | F102: 5 | H102: 5 | I102: 1,770.00 $ | K102: 5 | L102: $8,850.00 | M102: 0
A103: 190 | B103: LIBRO DE CONS REGISTRO VIH | E103: UNID | F103: 0 | H103: 0 | I103: 1,770.00 $ | K103: 0 | L103: 0 | M103: 0
A104: 191 | B104: LIBRO DE SEROLOGIA | E104: UNID | F104: 2 | H104: 2 | I104: 2,360.00 $ | K104: 2 | L104: $4,720.00 | M104: 0
A105: 192 | B105: LIBRO DE URIANALISIS | E105: UNID | F105: 1 | H105: 1 | I105: 2,360.00 $ | K105: 1 | L105: $2,360.00 | M105: 0
A106: 193 | B106: LIBRO HEMATOLOGIA | E106: UNID | F106: 2 | H106: 2 | I106: 2,000.00 $ | K106: 2 | L106: $4,000.00 | M106: 0
A107: 194 | B107: LIBRO QUIMICO | E107: UNID | F107: 1 | H107: 1 | I107: 2,360.00 $ | K107: 1 | L107: $2,360.00 | M107: 0
A108: 195 | B108: LIBRO INTERNAMIENTO | E108: UNID | F108: 3 | H108: 3 | I108: 1,770.00 $ | K108: 3 | L108: $5,310.00 | M108: 0
A109: 196 | B109: LIBRO DE RAYOS X | E109: UNID | F109: 2 | H109: 2 | I109: 1,770.00 $ | K109: 2 | L109: $3,540.00 | M109: 0
A110: 197 | B110: LIBRO RECORD DE REGISTRO ADOLECENTE | E110: UNID | F110: 0 | H110: 0 | I110: 1,800.00 $ | K110: 0 | L110: 0 | M110: 0
A111: 198 | B111: LIQUID PAPER T/L CORRECTOR | E111: UNID | F111: 1 | H111: 1 | I111: 30.00 $ | J111: 1 | K111: 0 | L111: 0 | M111: $30.00
A112: 199 | B112: MARCADORES AZULES | E112: UNID | F112: 27 | H112: 27 | I112: 30.00 $ | K112: 27 | L112: $810.00 | M112: 0
A113: 200 | B113: MARCADORES NEGROS | E113: UNID | F113: 30 | H113: 30 | I113: 30.00 $ | K113: 30 | L113: $900.00 | M113: 0
A114: 201 | B114: MISTOLIN | E114: GALON | F114: 21 | H114: 21 | I114: 104.00 $ | J114: 10 | K114: 11 | L114: $1,144.00 | M114: $1,040.00
A115: 202 | B115: PAPEL CARBON 8 1/2*11 | E115: UNID | F115: 25 | H115: 25 | I115: 325.00 $ | J115: 2 | K115: 23 | L115: $7,475.00 | M115: $650.00
A116: 203 | B116: PAPEL HIGIENICO FARDO 48/1 | E116: UNID | F116: 128 | H116: 128 | I116: 22.60 $ | J116: 48 | K116: 80 | L116: $1,808.00 | M116: $1,084.80
A117: 204 | B117: PAPEL MANILA NATURAL KRAF | E117: UNID | F117: 1 | H117: 1 | I117: 3,916.00 $ | J117: 1 | K117: 0 | L117: 0 | M117: $3,916.00
A118: 205 | B118: PAPEL TOALLA 6/1 | E118: UNID | F118: 12 | H118: 12 | I118: 95.38 $ | J118: 1 | K118: 11 | L118: $1,049.18 | M118: $95.38
A119: 206 | B119: PERFORADORA 2 | E119: UNID | F119: 0 | H119: 0 | I119: 306.08 $ | K119: 0 | L119: 0 | M119: 0
A120: 207 | B120: PERFORADORA 3 | E120: UNID | F120: 1 | H120: 1 | I120: 631.30 $ | K120: 1 | L120: $631.30 | M120: 0
A121: 208 | B121: PILA AAA PEQUEÑA | E121: UNID | F121: 28 | H121: 28 | I121: 54.00 $ | K121: 28 | L121: $1,512.00 | M121: 0
A122: 209 | B122: PILA AA | E122: UNID | F122: 32 | H122: 32 | I122: 53.00 $ | K122: 32 | L122: $1,696.00 | M122: 0
A123: 210 | B123: PAPEL CON DIVISION 200/1 OPTION | E123: CAJA | F123: 1 | H123: 1 | I123: 1,085.00 $ | J123: 1 | K123: 0 | L123: 0 | M123: $1,085.00
A124: 211 | B124: PLATOS | E124: FARDO | F124: 6 | H124: 6 | I124: 1,291.00 $ | J124: 2 | K124: 4 | L124: $5,164.00 | M124: $2,582.00
A125: 212 | B125: POS-IT 3*3 | E125: RESMA | F125: 0 | H125: 0 | I125: 33.63 $ | K125: 0 | L125: 0 | M125: 0
A126: 213 | B126: RECOJEDOR DE BASURA | E126: UNID | F126: 6 | H126: 6 | I126: 109.25 $ | K126: 6 | L126: $655.50 | M126: 0
A127: 214 | B127: RESALTADOR | E127: UNID | F127: 12 | H127: 12 | I127: 39.00 $ | K127: 12 | L127: $468.00 | M127: 0
A128: 215 | B128: RESMA DE CONTROL DE EXISTENCIA | E128: RESMA | F128: 3 | H128: 3 | I128: 1,298.00 $ | K128: 3 | L128: $3,894.00 | M128: 0
A129: 216 | B129: RESMA HOJA DE MAQUINA 8/2 *11 | E129: RESMA | F129: 73 | H129: 73 | I129: 228.00 $ | J129: 17 | K129: 56 | L129: $12,768.00 | M129: $3,876.00
A130: 217 | B130: ROLLO DE PAPEL SUMADORA | E130: UNID | F130: 16 | H130: 16 | I130: 23.00 $ | J130: 4 | K130: 12 | L130: $276.00 | M130: $92.00
A131: 218 | B131: ROTULO PARA SOLUCION Y MEDICAMENTOS | E131: UNID | F131: 850 | H131: 850 | I131: 6.50 $ | K131: 850 | L131: $5,525.00 | M131: 0
A132: 219 | B132: SACA GRAPA | E132: UNID | F132: 3 | H132: 3 | I132: 30.00 $ | K132: 3 | L132: $90.00 | M132: 0
A133: 220 | B133: SACAPUNTA METAL | E133: UNID | F133: 20 | H133: 20 | I133: 15.00 $ | K133: 20 | L133: $300.00 | M133: 0
A134: 221 | B134: SACO DE DETERGENTE | E134: UNID | F134: 2 | H134: 2 | I134: 1,100.00 $ | K134: 2 | L134: $2,200.00 | M134: 0
A135: 222 | B135: SERVILLETA C-FOLD 24/100 XCELENT | E135: UNID | F135: 102 | H135: 102 | I135: 24.50 $ | K135: 102 | L135: $2,499.00 | M135: 0
A136: 223 | B136: SERVILLETAS DE BINGO 60/1 | E136: UNID | F136: 316 | H136: 316 | I136: 11.50 $ | J136: 30 | K136: 286 | L136: $3,289.00 | M136: $345.00
A137: 224 | B137: SOBRE CARTA VENTANILLA | E137: UNID | F137: 900 | H137: 900 | I137: 1.85 $ | K137: 900 | L137: $1,665.00 | M137: 0
A138: 225 | B138: SOBRE MANILA 9*12 500 UNID | E138: UNID | F138: 390 | H138: 390 | I138: 13.85 $ | K138: 390 | L138: $5,401.50 | M138: 0
A139: 226 | B139: SOBRE MANILA 14*17 1000 UNIDAD | E139: UNID | F139: 910 | H139: 910 | I139: 13.85 $ | K139: 910 | L139: $12,603.50 | M139: 0
A140: 227 | B140: SOBRE MANILA 10*14 DE 500 UNID | E140: UNID | F140: 250 | H140: 250 | I140: 7.10 $ | K140: 250 | L140: $1,775.00 | M140: 0
A141: 228 | B141: SOBRE TIMBRADO | E141: UNID | F141: 285 | H141: 285 | I141: 13.00 $ | K141: 285 | L141: $3,705.00 | M141: 0
A142: 229 | B142: SUAPER JUMBO | E142: GALON | F142: 3 | H142: 3 | I142: 175.00 $ | J142: 2 | K142: 1 | L142: $175.00 | M142: $350.00
A143: 230 | B143: SUAVITEL | E143: GALON | F143: 1 | H143: =F143+G143 -> 1 | I143: 148.31 $ | J143: 1 | K143: =H143-J143 -> 0 | L143: =I143*K143 -> 0 | M143: =I143*J143 -> $148.31
A144: 231 | B144: TALONARIO DE PATOLOGIA | E144: TALONARIO | F144: 25 | H144: 25 | I144: 70.80 $ | K144: 25 | L144: $1,770.00 | M144: 0
A145: 232 | B145: TALONARIO HISTORIAL CLINICO EMERGENCIA | E145: TALONARIO | F145: 0 | G145: 60 | H145: 60 | I145: 275.00 $ | K145: 60 | L145: $16,500.00 | M145: 0
A146: 233 | B146: TALONARIO ORDEN MEDICA | E146: TALONARIO | F146: 25 | H146: 25 | I146: 275.00 $ | K146: 25 | L146: $6,875.00 | M146: 0
A147: 234 | B147: TALONARIO COPROLOGICO | E147: TALONARIO | F147: 96 | H147: 96 | I147: 88.35 $ | K147: 96 | L147: $8,481.60 | M147: 0
A148: 235 | B148: TALALONARIO HEMOTOLOGIA | E148: TALONARIO | F148: 49 | H148: 49 | I148: 88.35 $ | K148: 49 | L148: $4,329.15 | M148: 0
A149: 236 | B149: TALONARIO CONFIMACION DE QUIRURGICA | E149: TALONARIO | F149: 5 | H149: 5 | I149: 185.00 $ | K149: 5 | L149: $925.00 | M149: 0
A150: 237 | B150: TALONARIO LABORATORIO CLINICO | E150: TALONARIO | F150: 37 | H150: 37 | I150: 37.00 $ | J150: 25 | K150: 12 | L150: $444.00 | M150: $925.00
A151: 238 | B151: TALONARIO PARTOGRAMA POSPARTO | E151: TALONARIO | F151: 9 | H151: 9 | I151: 185.00 $ | K151: 9 | L151: $1,665.00 | M151: 0
A152: 239 | B152: TALONARIO HISTORIAL OPERATORIO | E152: RESMA | F152: 1 | H152: 1 | I152: 185.00 $ | K152: 1 | L152: $185.00 | M152: 0
A153: 240 | B153: TALONARIO URIANALISIS | E153: TALONARIO | F153: 108 | H153: 108 | I153: 53.10 $ | K153: 108 | L153: $5,734.80 | M153: 0
A154: 241 | B154: TALONARIO REQUISICION DE FARMACIA | E154: TALONARIO | F154: 6 | H154: 6 | I154: 413.00 $ | K154: 6 | L154: $2,478.00 | M154: 0
A155: 242 | B155: TALONARIO CUIDADO DE ENFERERIA VIH MEDIA | E155: TALONARIO | F155: 8 | H155: 8 | I155: 275.00 $ | K155: 8 | L155: $2,200.00 | M155: 0
A156: 243 | B156: TALONARIO CONCENTIMIENTO INFORMADO LARGO | E156: TALONARIO | F156: 3 | H156: 3 | I156: 756.00 $ | K156: 3 | L156: $2,268.00 | M156: 0
A157: 244 | B157: TALONARIO DE CLASIFICACION | E157: TALONARIO | F157: 30 | H157: 30 | I157: 756.00 $ | K157: 30 | L157: $22,680.00 | M157: 0
A158: 245 | B158: TALONARIO DE CONTROL TEMPERATURA | E158: TALONARIO | F158: 15 | H158: 15 | I158: 294.00 $ | K158: 15 | L158: $4,410.00 | M158: 0
A159: 246 | B159: TALONARIO DE CUOTA DE CONTRIBUCION | E159: TALONARIO | F159: 10 | H159: 10 | I159: 185.00 $ | K159: 10 | L159: $1,850.00 | M159: 0
A160: 247 | B160: TALONARIO PROTOCOLO ATENCION AL PARTO | E160: TALONARIO | F160: 8 | H160: 8 | I160: 185.00 $ | K160: 8 | L160: $1,480.00 | M160: 0
A161: 248 | B161: TALONARIO HOJA DE KARDEX INSUMO | E161: TALONARIO | F161: 9 | H161: 9 | I161: 994.00 $ | K161: 9 | L161: $8,946.00 | M161: 0
A162: 249 | B162: TALONARIO SOLICITUD DE ALMACEN | E162: TALONARIO | F162: 6 | H162: 6 | I162: 224.00 $ | K162: 6 | L162: $1,344.00 | M162: 0
A163: 250 | B163: TALONARIO SALIDA ALMACEN | E163: TALONARIO | F163: 24 | H163: 24 | I163: 275.00 $ | K163: 24 | L163: $6,600.00 | M163: 0
A164: 251 | B164: TAPA DE VASOS #12 CLEA 10/100 | E164: UNID | F164: 0 | H164: 0 | I164: 224.00 $ | K164: 0 | L164: 0 | M164: 0
A165: 252 | B165: TARJETA DE CITA | E165: UNID | F165: 730 | H165: 730 | I165: 2.75 $ | K165: 730 | L165: $2,007.50 | M165: 0
A166: 253 | B166: TARJETA DE EXPEDIENTE | E166: UNID | F166: 1600 | H166: 1600 | I166: 4.50 $ | K166: 1600 | L166: $7,200.00 | M166: 0
A167: 254 | B167: TALONARIO RECETARIO NORMAL | E167: TALONARIO | F167: 926 | H167: 926 | I167: 53.65 $ | J167: 10 | K167: 916 | L167: $49,143.40 | M167: $536.50
A168: 255 | B168: TIJERAS | E168: UNID | F168: 1 | H168: 1 | I168: 62.54 $ | J168: 1 | K168: 0 | L168: 0 | M168: $62.54
A169: 256 | B169: TINTA PARA SELLO AZUL | E169: UNID | F169: 8 | H169: 8 | I169: 106.00 $ | K169: 8 | L169: $848.00 | M169: 0
A170: 257 | B170: TOALLA MICROFIBRA16´´ *16´´ | E170: PAQU | F170: 9 | H170: 9 | I170: 49.56 $ | K170: 9 | L170: $446.04 | M170: 0
A171: 258 | B171: ENVASES PLASTICOS 4 OZ | E171: UNID | F171: 0 | H171: 0 | I171: 147.00 $ | K171: 0 | L171: 0 | M171: 0
A172: 259 | B172: TAPAS PLASTICAS 4 OZ | E172: PAQU | F172: 0 | H172: 0 | I172: 137.00 $ | K172: 0 | L172: 0 | M172: 0
A173: 260 | B173: VASO 12 CAJA 40/25 FOAM | E173: PAQU | F173: 130 | H173: 130 | I173: 53.20 $ | J173: 13 | K173: 117 | L173: $6,224.40 | M173: $691.60
A174: 261 | B174: VASO # 5 | E174: PAQU | F174: 109 | H174: 109 | I174: 55.00 $ | J174: 3 | K174: 106 | L174: $5,830.00 | M174: $165.00
A175: 262 | B175: VASOS #7 | E175: PAQU | F175: 40 | H175: 40 | I175: 38.94 $ | J175: 32 | K175: 8 | L175: $311.52 | M175: $1,246.08
L176: =SUM(L14:L175) -> $614,862.95
J177: TOTAL DE CONSUMO | L177: =SUM(M14:M176) -> $38,573.45

Sheet DICIEMBRE
K7: 2025-12-31
A8: INVENTARIO DE ALMACEN
A9: CODIGO | B9: DESCRIPCION DEL PRODUCTO | E9: UNIDAD MEDIDA | F9: CANTIDAD | G9: ENTRADA | H9: TOTAL | I9: PRECIO | J9: SALIDA DE USO MENSUAL | K9: CANTIDAD ACTIVA EN ALMACEN | L9: VALOR TOTAL ACTIVO | M9: VALORDE TOTAL CONSUMO
A10: 101 | B10: ACORDEON 10*12 CARTON PIEDRA | E10: UNID | F10: 4 | H10: =F10+G10 -> 4 | I10: 744.00 $ | J10: 4 | K10: =H10-J10 -> 0 | L10: =I10*K10 -> 0 | M10: =I10*J10 -> $2,976.00
A11: 102 | B11: AMBIENTADOR SPRAY | E11: UNID | F11: 8 | G11: 24 | H11: =F11+G11 -> 32 | I11: 192.00 $ | J11: 8 | K11: =H11-J11 -> 24 | L11: =I11*K11 -> $4,608.00 | M11: =I11*J11 -> $1,536.00
A12: 103 | B12: AGUA BOTELLITAS | E12: UNID | F12: 160 | G12: 400 | H12: 560 | I12: 6.50 $ | J12: 220 | K12: 340 | L12: $2,210.00 | M12: $1,430.00
A13: 104 | B13: AXION EN PASTA | E13: UNID | F13: 4 | G13: 18 | H13: 22 | I13: 116.00 $ | J13: 14 | K13: 8 | L13: $928.00 | M13: $1,624.00
A14: 105 | B14: BAYGON 400ML | E14: UNID | F14: 0 | G14: 12 | H14: 12 | I14: 349.00 $ | K14: 12 | L14: $4,188.00 | M14: 0
A15: 106 | B15: BOLIGRAFOS AZULES | E15: UNID | F15: 79 | G15: 72 | H15: 151 | I15: 10.00 $ | J15: 41 | K15: 110 | L15: $1,100.00 | M15: $410.00
A16: 107 | B16: BOLIGRAFOS NEGROS | E16: UNID | F16: 36 | H16: 36 | I16: 7.00 $ | K16: 36 | L16: $252.00 | M16: 0
A17: 108 | B17: BOLIGRAFOS ROJOS | E17: UNID | F17: 90 | H17: 90 | I17: 7.00 $ | K17: 90 | L17: $630.00 | M17: 0
A18: 109 | B18: BOLIGRAFOS VERDES | E18: UNID | F18: 8 | H18: 8 | I18: 10.00 $ | J18: 1 | K18: 7 | L18: $70.00 | M18: $10.00
A19: 110 | B19: BORRANTE DE LECHE | E19: UNID | F19: 8 | H19: 8 | I19: 8.00 $ | J19: 1 | K19: 7 | L19: $56.00 | M19: $8.00
A20: 111 | B20: BRILLO GRUESO 12/1 ROMANO | E20: UNID | F20: 27 | H20: 27 | I20: 69.60 $ | J20: 11 | K20: 16 | L20: $1,113.60 | M20: $765.60
A21: 112 | B21: BRILLO GRIS | E21: UNID | F21: 11 | H21: 11 | I21: 69.60 $ | J21: 2 | K21: 9 | L21: $626.40 | M21: $139.20
A22: 113 | B22: BRILLO VERDE Y ESPONJA | E22: UNID | F22: 6 | G22: 24 | H22: 30 | I22: 57.80 $ | J22: 4 | K22: 26 | L22: $1,502.80 | M22: $231.20
A23: 114 | B23: CAJA PLASTICAS DE 27 GL NEGRA | E23: UNID | F23: 9 | H23: 9 | I23: 1,350.00 $ | K23: 9 | L23: $12,150.00 | M23: 0
A24: 115 | B24: CAJITA DE GRAPAS ESTÁNDAR 26/6 | E24: UNID | F24: 10 | G24: 24 | H24: 34 | I24: 47.17 $ | J24: 5 | K24: 29 | L24: $1,367.93 | M24: $235.85
A25: 116 | B25: CALCULADORA | E25: UNID | F25: 3 | H25: 3 | I25: 359.90 $ | K25: 3 | L25: $1,079.70 | M25: 0
A26: 117 | B26: CARPETA NEGRA #1 | E26: UNID | F26: 4 | H26: 4 | I26: 469.00 $ | K26: =H26-J26 -> 4 | L26: $1,876.00 | M26: 0
A27: 118 | B27: CARPETA NEGRA # 2 | E27: UNID | F27: 2 | H27: 2 | I27: 178.20 $ | K27: 2 | L27: $356.40 | M27: 0
A28: 119 | B28: CARPETAS # 3 | E28: UNID | F28: 2 | H28: 2 | I28: 147.50 $ | K28: 2 | L28: $295.00 | M28: 0
A29: 120 | B29: CHINCHETAS | E29: CAJAS | F29: 4 | H29: 4 | I29: 84.75 $ | K29: 4 | L29: $339.00 | M29: 0
A30: 121 | B30: CEPILLO DE INODORO | E30: UNID | F30: 5 | H30: 5 | I30: 159.30 $ | K30: 5 | L30: $796.50 | M30: 0
A31: 122 | B31: CERA PARA CONTAR | E31: UNID | F31: 9 | H31: 9 | I31: 60.00 $ | K31: 9 | L31: $540.00 | M31: 0
A32: 123 | B32: CINTA MASKING TAPE 3/4 VISIBLE | E32: UNID | F32: 33 | H32: 33 | I32: 75.00 $ | K32: 33 | L32: $2,475.00 | M32: 0
A33: 124 | B33: CINTA DE EMPAQUE | E33: UNID | F33: 3 | G33: 12 | H33: 15 | I33: 47.20 $ | J33: 3 | K33: 12 | L33: $566.40 | M33: $141.60
A34: 125 | B34: CINTA MAGICA SUMADORA | E34: UNID | F34: 2 | H34: 2 | I34: 76.70 $ | K34: 2 | L34: $153.40 | M34: 0
A35: 126 | B35: CLIPS JUMBO | E35: UNID | F35: 29 | G35: 10 | H35: 39 | I35: 38.00 $ | J35: 3 | K35: 36 | L35: $1,368.00 | M35: $114.00
A36: 127 | B36: CINTA MASKING TAPE CREMA | E36: UNID | F36: 2 | G36: 24 | H36: 26 | I36: 46.00 $ | J36: 18 | K36: 8 | L36: $368.00 | M36: $828.00
A37: 128 | B37: CUBO PLATICOS DE AGUJA DESECHABLES | E37: UNID | F37: 0 | G37: 41 | H37: 41 | I37: 50.00 $ | J37: 3 | K37: 38 | L37: $1,900.00 | M37: $150.00
A38: 129 | B38: CLIPS BILLETERO 32 MM 12/1 | E38: UNID | F38: 36 | H38: 36 | I38: 123.90 $ | J38: 4 | K38: 32 | L38: $3,964.80 | M38: $495.60
A39: 130 | B39: CLIPS BILLETERO 41 MM 12/1 | E39: UNID | F39: 27 | H39: 27 | I39: 171.10 $ | J39: 4 | K39: 23 | L39: $3,935.30 | M39: $684.40
A40: 131 | B40: CLIPS BILLETERO 51 MM 12/1 | E40: UNID | F40: 22 | H40: 22 | I40: 230.10 $ | K40: 22 | L40: $5,062.20 | M40: 0
A41: 132 | B41: CLORO | E41: GALON | F41: 34 | G41: 35 | H41: 69 | I41: 91.53 $ | J41: 37 | K41: 32 | L41: $2,928.96 | M41: $3,386.61
A42: 133 | B42: CONTROL DE LIQUIDO(ENFERMERIA) | E42: TALONARIO | F42: 11 | H42: 11 | I42: 1,200.00 $ | K42: 11 | L42: $13,200.00 | M42: 0
A43: 134 | B43: CUADERNOS COCIDOS | E43: UNID | F43: 11 | G43: 24 | H43: 35 | I43: 53.00 $ | J43: 4 | K43: 31 | L43: $1,643.00 | M43: $212.00
A44: 135 | B44: CUCHARA 25/1 | E44: CAJA | F44: 1 | G44: 3 | H44: 4 | I44: 631.30 $ | J44: 3 | K44: 1 | L44: $631.30 | M44: $1,893.90
A45: 136 | B45: ESCOBA C/PALO | E45: UNID | F45: 9 | G45: 6 | H45: 15 | I45: 133.00 $ | J45: 2 | K45: 13 | L45: $1,729.00 | M45: $266.00
A46: 138 | B46: FOLDER AMARILLO OFICINA | E46: UNID | F46: 560 | H46: =F46+G46 -> 560 | I46: 2.33 $ | K46: 560 | L46: $1,304.80 | M46: 0
A47: 138 | B47: FOLDER VERDE 8 1/2 X 11 | E47: UNID | F47: 247 | G47: 200 | H47: 447 | I47: 4.95 $ | J47: 15 | K47: 432 | L47: $2,138.40 | M47: $74.25
A48: 139 | B48: FUNDA NEGRA 17 x22 GL PEQUEÑA | E48: PAQ | F48: 39 | H48: 39 | I48: 72.00 $ | J48: 14 | K48: 25 | L48: $1,800.00 | M48: $1,008.00
A49: 140 | B49: FUNDA NEGRA #6 | E49: PAQ | F49: 29 | H49: 29 | I49: 36.58 $ | J49: 1 | K49: 28 | L49: $1,024.24 | M49: $36.58
A50: 141 | B50: FUNDA ROJA #2 | E50: PAQ | F50: 25 | H50: 25 | I50: 20.00 $ | K50: 25 | L50: $500.00 | M50: 0
A51: 142 | B51: FUNDA AZULES #4 | E51: PAQ | F51: 35 | H51: 35 | I51: 26.00 $ | J51: 1 | K51: 34 | L51: $884.00 | M51: $26.00
A52: 143 | B52: FUNDA NEGRA MEDIANA 30 GL | E52: PAQ | F52: 18 | G52: 30 | H52: 48 | I52: 1,080.00 $ | J52: 28 | K52: 20 | L52: $21,600.00 | M52: $30,240.00
A53: 144 | B53: FUNDA NEGRA GRANDE 55 GL | E53: PAQ | F53: 2 | G53: 10 | H53: 12 | I53: 616.00 $ | J53: 5 | K53: 7 | L53: $4,312.00 | M53: $3,080.00
A54: 145 | B54: FUNDA ROJA PEQUENAS 17 GL | E54: PAQ | F54: 4 | H54: 4 | I54: 240.00 $ | J54: 3 | K54: 1 | L54: $240.00 | M54: $720.00
A55: 146 | B55: FUNDA ROJA GRANDE 55 gl | E55: UNID | F55: 3 | H55: 3 | I55: 1,030.10 $ | K55: 3 | L55: $3,090.30 | M55: 0
A56: 147 | B56: FUNDA ROJA MEDIANA 30 GL | E56: PAQ | F56: 6 | G56: 25 | H56: 31 | I56: 450.36 $ | J56: 8 | K56: 23 | L56: $10,358.28 | M56: $3,602.88
A57: 148 | B57: GALON JABON LIQUIDO DE MANO | E57: GALON | F57: 4 | H57: 4 | I57: 171.10 $ | J57: 1 | K57: 3 | L57: $513.30 | M57: $171.10
A58: 149 | B58: GANCHOS P/FOLDER MH | E58: CAJA | F58: 7 | H58: 7 | I58: 141.60 $ | J58: 1 | K58: 6 | L58: $849.60 | M58: $141.60
A59: 150 | B59: GALON JABON DE CUABA | E59: GALON | F59: 4 | G59: 5 | H59: 9 | I59: 165.25 $ | J59: 4 | K59: 5 | L59: $826.25 | M59: $661.00
A60: 151 | B60: GOMITAS | E60: CAJA | F60: 24 | H60: 24 | I60: 45.00 $ | J60: 6 | K60: 18 | L60: $810.00 | M60: $270.00
A61: 152 | B61: GRAPADORA NEGRA | E61: CAJA | F61: 5 | H61: 5 | I61: 320.00 $ | K61: 5 | L61: $1,600.00 | M61: 0
A62: 153 | B62: GUANTES MULTIUSOS | E62: UNID | F62: 4 | G62: 12 | H62: 16 | I62: 666.36 $ | K62: 16 | L62: $10,661.76 | M62: 0
A63: 154 | B63: HISTORIA CLINICA PERINATAL | E63: TALONARIO | F63: 7 | H63: 7 | I63: 1,298.00 $ | K63: 7 | L63: $9,086.00 | M63: 0
A64: 155 | B64: HOJA DE ANOTACION ENFERMERIA | E64: RESMA | F64: 4 | H64: 4 | I64: 826.00 $ | J64: 4 | K64: 0 | L64: 0 | M64: $3,304.00
A65: 156 | B65: HOJA DE ADMICION | E65: RESMA | F65: 5 | H65: 5 | I65: 165.00 $ | K65: 5 | L65: $825.00 | M65: 0
A66: 157 | B66: HOJA DE ATENCION DIARIA | E66: TALONARIO | F66: 3 | H66: 3 | I66: 994.00 $ | K66: 3 | L66: $2,982.00 | M66: 0
A67: 158 | B67: HOJA DE CERTIFICACION | E67: RESMA | F67: 2 | H67: 2 | I67: 1,475.00 $ | K67: 2 | L67: $2,950.00 | M67: 0
A68: 159 | B68: HOJA DE CONSULTA EXTERNA | E68: TALONARIO | F68: 15 | H68: 15 | I68: 994.00 $ | J68: 5 | K68: 10 | L68: $9,940.00 | M68: $4,970.00
A69: 160 | B69: HOJA PACIENTE DIETA | E69: TALONARIO | F69: 18 | H69: 18 | I69: 800.00 $ | J69: 12 | K69: 6 | L69: $4,800.00 | M69: $9,600.00
A70: 161 | B70: HOJA DE DIRECCION CUIDADO DE ENFERMERIA | E70: TALONARIO | F70: 32 | H70: 32 | I70: 994.00 $ | J70: 2 | K70: 30 | L70: $29,820.00 | M70: $1,988.00
A71: 162 | B71: HOJA DE ENFER EN AREA EMERGENCIA FO63 | E71: TALONARIO | F71: 17 | H71: 17 | I71: 994.00 $ | J71: 1 | K71: 16 | L71: $15,904.00 | M71: $994.00
A72: 163 | B72: HOJA DE ENFERMERIA | E72: TALONARIO | F72: 38 | H72: 38 | I72: 1,298.00 $ | J72: 20 | K72: 18 | L72: $23,364.00 | M72: $25,960.00
A73: 164 | B73: HOJA DE EVOLUCION | E73: TALONARIO | F73: 5 | H73: 5 | I73: 294.00 $ | J73: 1 | K73: 4 | L73: $1,176.00 | M73: $294.00
A74: 165 | B74: HOJA DE ANESTESIA | E74: TALONARIO | F74: 12 | H74: 12 | I74: 185.00 $ | K74: 12 | L74: $2,220.00 | M74: 0
A75: 166 | B75: HOJA DE HISTORIAL CLINICO | E75: TALONARIO | F75: 41 | H75: =F75+G75 -> 41 | I75: 195.00 $ | K75: =H75-J75 -> 41 | L75: =I75*K75 -> $7,995.00 | M75: =I75*J75 -> 0
A76: 167 | B76: HOJA D KARDEX D MEDICAMENTO SOLUCIONES | E76: TALONARIO | F76: 15 | H76: 15 | I76: 1,298.00 $ | K76: 15 | L76: $19,470.00 | M76: 0
A77: 168 | B77: HOJA DE REFERENCIA Y CONTRA REFERENCIA | E77: TALONARIO | F77: 11 | H77: 11 | I77: 826.00 $ | K77: 11 | L77: $9,086.00 | M77: 0
A78: 169 | B78: HOJA DE GLICEMIA | E78: TALONARIO | F78: 5 | H78: 5 | I78: 350.00 $ | K78: 5 | L78: $1,750.00 | M78: 0
A79: 170 | B79: HOJA RESUMEN MEDICO DE EGRESO | E79: RESMA | F79: 2 | H79: 2 | I79: 826.00 $ | K79: 2 | L79: $1,652.00 | M79: 0
A80: 171 | B80: HOJA SEGURIDAD CIRUGIA | E80: RESMA | F80: 2 | H80: 2 | I80: 1,475.00 $ | K80: 2 | L80: $2,950.00 | M80: 0
A81: 172 | B81: HOJA DESIGNOGRAMA ENFERM | E81: TALONARIO | F81: 9 | H81: 9 | I81: 994.00 $ | J81: 2 | K81: 7 | L81: $6,958.00 | M81: $1,988.00
A82: 173 | B82: HOJA KARDEX MED INTERNA INSUMOS | E82: TALONARIO | F82: 9 | H82: 9 | I82: 994.00 $ | J82: 2 | K82: 7 | L82: $6,958.00 | M82: $1,988.00
A83: 174 | B83: HOJA LEGAL 8 1/2*14 RESMA | E83: RESMA | F83: 4 | H83: 4 | I83: 348.00 $ | J83: 3 | K83: 1 | L83: $348.00 | M83: $1,044.00
A84: 175 | B84: HOJA ORDEN MEDICA | E84: TALONARIO | F84: 27 | H84: 27 | I84: 800.00 $ | J84: 10 | K84: 17 | L84: $13,600.00 | M84: $8,000.00
A85: 176 | B85: HOJA HISTORIAL OPERATORIO | E85: TALONARIO | F85: 5 | H85: 5 | I85: 1,299.00 $ | J85: 1 | K85: 4 | L85: $5,196.00 | M85: $1,299.00
A86: 177 | B86: HOJA SIGNOS VITALES | E86: TALONARIO | F86: 10 | H86: 10 | I86: 1,200.00 $ | K86: 10 | L86: $12,000.00 | M86: 0
A87: 178 | B87: HOJA GRAFICA DE TEMPERATURA | E87: RESMA | F87: 1 | H87: 1 | I87: 994.00 $ | K87: 1 | L87: $994.00 | M87: 0
A88: 179 | B88: HOJAS TIMBRADA | E88: TALONARIO | F88: 6 | H88: 6 | I88: 1,350.00 $ | J88: 2 | K88: 4 | L88: $5,400.00 | M88: $2,700.00
A89: 180 | B89: HOJA DE CONFIRMACION DE CIRUGIA | E89: RESMA | F89: 1 | H89: 1 | I89: 1,298.00 $ | K89: 1 | L89: $1,298.00 | M89: 0
A90: 181 | B90: LABELSP/FOLDER | E90: UNID | F90: 8 | H90: 8 | I90: 112.10 $ | K90: 8 | L90: $896.80 | M90: 0
A91: 182 | B91: LAPIZ | E91: UNID | F91: 31 | H91: 31 | I91: 10.00 $ | J91: 1 | K91: 30 | L91: $300.00 | M91: $10.00
A92: 183 | B92: LIBRO BANCO VENTA SERVICIOS | E92: UNID | F92: 1 | H92: 1 | I92: 2,360.00 $ | K92: 1 | L92: $2,360.00 | M92: 0
A93: 184 | B93: TALONARIO DE OXIGENO | E93: TALONARIO | F93: 8 | H93: 8 | I93: 200.00 $ | J93: 2 | K93: 6 | L93: $1,200.00 | M93: $400.00
A94: 185 | B94: LIBRO DE EMERGENCIA | E94: UNID | F94: 4 | H94: 4 | I94: 1,770.00 $ | K94: 4 | L94: $7,080.00 | M94: 0
A95: 186 | B95: LIBRO DE LABORATORIO PACIENTE | E95: UNID | F95: 3 | H95: 3 | I95: 1,170.00 $ | K95: 3 | L95: $3,510.00 | M95: 0
A96: 187 | B96: LIBRO DE CONTROL DE PARASITOLOGIA COPROLOGICO | E96: UNID | F96: 1 | H96: 1 | I96: 1,170.00 $ | K96: 1 | L96: $1,170.00 | M96: 0
A97: 188 | B97: LIBRO DE PARTO Y NACIMIENTO | E97: UNID | F97: 3 | H97: 3 | I97: 1,170.00 $ | K97: 3 | L97: $3,510.00 | M97: 0
A98: 189 | B98: LIBRO DE CIRUGIA | E98: UNID | F98: 5 | H98: 5 | I98: 1,770.00 $ | K98: 5 | L98: $8,850.00 | M98: 0
A99: 190 | B99: LIBRO DE CONS REGISTRO VIH | E99: UNID | F99: 3 | H99: 3 | I99: 1,770.00 $ | J99: 1 | K99: 2 | L99: $3,540.00 | M99: $1,770.00
A100: 191 | B100: LIBRO DE SEROLOGIA | E100: UNID | F100: 2 | H100: 2 | I100: 2,360.00 $ | K100: 2 | L100: $4,720.00 | M100: 0
A101: 192 | B101: LIBRO DE URIANALISIS | E101: UNID | F101: 1 | H101: 1 | I101: 2,360.00 $ | K101: 1 | L101: $2,360.00 | M101: 0
A102: 193 | B102: LIBRO HEMATOLOGIA | E102: UNID | F102: 2 | H102: 2 | I102: 2,000.00 $ | K102: 2 | L102: $4,000.00 | M102: 0
A103: 194 | B103: LIBRO QUIMICO | E103: UNID | F103: 1 | H103: 1 | I103: 2,360.00 $ | K103: 1 | L103: $2,360.00 | M103: 0
A104: 195 | B104: LIBRO INTERNAMIENTO | E104: UNID | F104: 3 | H104: 3 | I104: 1,770.00 $ | K104: 3 | L104: $5,310.00 | M104: 0
A105: 196 | B105: LIBRO DE RAYOS X | E105: UNID | F105: 2 | H105: 2 | I105: 1,770.00 $ | K105: 2 | L105: $3,540.00 | M105: 0
A106: 197 | B106: LIBRO RECORD DE REGISTRO ADOLECENTE | E106: UNID | F106: 0 | H106: 0 | I106: 1,800.00 $ | K106: 0 | L106: 0 | M106: 0
A107: 198 | B107: LIQUID PAPER T/L CORRECTOR | E107: UNID | F107: 11 | H107: 11 | I107: 30.00 $ | J107: 3 | K107: 8 | L107: $240.00 | M107: $90.00
A108: 199 | B108: MARCADORES AZULES | E108: UNID | F108: 27 | H108: 27 | I108: 30.00 $ | J108: 4 | K108: 23 | L108: $690.00 | M108: $120.00
A109: 200 | B109: MARCADORES NEGROS | E109: UNID | F109: 28 | H109: 28 | I109: 30.00 $ | J109: 3 | K109: 25 | L109: $750.00 | M109: $90.00
A110: 201 | B110: MISTOLIN | E110: GALON | F110: 25 | G110: 40 | H110: 65 | I110: 104.00 $ | J110: 41 | K110: 24 | L110: $2,496.00 | M110: $4,264.00
A111: 202 | B111: PAPEL CARBON 8 1/2*11 | E111: UNID | F111: 23 | H111: 23 | I111: 325.00 $ | K111: 23 | L111: $7,475.00 | M111: 0
A112: 203 | B112: PAPEL HIGIENICO FARDO 48/1 | E112: UNID | F112: 74 | G112: 192 | H112: 266 | I112: 22.60 $ | J112: 194 | K112: 72 | L112: $1,627.20 | M112: $4,384.40
A113: 204 | B113: PAPEL MANILA NATURAL KRAF | E113: UNID | F113: 2 | H113: 2 | I113: 3,916.00 $ | K113: 2 | L113: $7,832.00 | M113: 0
A114: 205 | B114: PAPEL TOALLA 6/1 | E114: UNID | F114: 14 | G114: 12 | H114: 26 | I114: 95.38 $ | J114: 13 | K114: 13 | L114: $1,239.94 | M114: $1,239.94
A115: 206 | B115: PERFORADORA 2 | E115: UNID | F115: 0 | H115: 0 | I115: 306.08 $ | K115: 0 | L115: 0 | M115: 0
A116: 207 | B116: PERFORADORA 3 | E116: UNID | F116: 1 | H116: 1 | I116: 631.30 $ | K116: 1 | L116: $631.30 | M116: 0
A117: 208 | B117: PILA AAA PEQUEÑA | E117: UNID | F117: 25 | H117: 25 | I117: 54.00 $ | J117: 4 | K117: 21 | L117: $1,134.00 | M117: $216.00
A118: 209 | B118: PILA AA GRANDE | E118: UNID | F118: 32 | H118: 32 | I118: 53.00 $ | K118: 32 | L118: $1,696.00 | M118: 0
A119: 210 | B119: PAPEL CON DIVISION 200/1 OPTION | E119: CAJA | F119: 2 | G119: 1 | H119: 3 | I119: 1,085.00 $ | J119: 2 | K119: 1 | L119: $1,085.00 | M119: $2,170.00
A120: 211 | B120: PLATOS | E120: FARDO | F120: 4 | G120: 12 | H120: 16 | I120: 1,291.00 $ | J120: 10 | K120: 6 | L120: $7,746.00 | M120: $12,910.00
A121: 212 | B121: POS-IT 3*3 | E121: RESMA | F121: 0 | H121: 0 | I121: 33.63 $ | K121: 0 | L121: 0 | M121: 0
A122: 213 | B122: RECOJEDOR DE BASURA | E122: UNID | F122: 6 | H122: 6 | I122: 109.25 $ | J122: 3 | K122: 3 | L122: $327.75 | M122: $327.75
A123: 214 | B123: RESALTADOR | E123: UNID | F123: 12 | H123: 12 | I123: 39.00 $ | K123: 12 | L123: $468.00 | M123: 0
A124: 215 | B124: RESMA DE CONTROL DE EXISTENCIA | E124: RESMA | F124: 3 | H124: 3 | I124: 1,298.00 $ | K124: 3 | L124: $3,894.00 | M124: 0
A125: 216 | B125: RESMA HOJA DE MAQUINA 8/2 *11 | E125: RESMA | F125: 49 | G125: 60 | H125: 109 | I125: 228.00 $ | J125: 67 | K125: 42 | L125: $9,576.00 | M125: $15,276.00
A126: 217 | B126: ROLLO DE PAPEL SUMADORA | E126: UNID | F126: 12 | H126: 12 | I126: 23.00 $ | J126: 4 | K126: 8 | L126: $184.00 | M126: $92.00
A127: 218 | B127: ROTULO PARA SOLUCION Y MEDICAMENTOS | E127: UNID | F127: 850 | H127: 850 | I127: 6.50 $ | J127: 100 | K127: 750 | L127: $4,875.00 | M127: $650.00
A128: 219 | B128: SACA GRAPA | E128: UNID | F128: 2 | H128: 2 | I128: 30.00 $ | J128: 1 | K128: 1 | L128: $30.00 | M128: $30.00
A129: 220 | B129: SACAPUNTA METAL | E129: UNID | F129: 20 | H129: 20 | I129: 15.00 $ | J129: 1 | K129: 19 | L129: $285.00 | M129: $15.00
A130: 221 | B130: SACO DE DETERGENTE | E130: UNID | F130: 1 | G130: 3 | H130: 4 | I130: 1,100.00 $ | J130: 2 | K130: 2 | L130: $2,200.00 | M130: $2,200.00
A131: 222 | B131: SERVILLETA C-FOLD 24/100 XCELENT | E131: UNID | F131: 57 | G131: 48 | H131: 105 | I131: 24.50 $ | J131: 15 | K131: 90 | L131: $2,205.00 | M131: $367.50
A132: 223 | B132: SERVILLETAS DE BINGO 60/1 | E132: UNID | F132: 209 | G132: 120 | H132: 329 | I132: 11.50 $ | J132: 126 | K132: 203 | L132: $2,334.50 | M132: $1,449.00
A133: 224 | B133: SOBRE CARTA VENTANILLA | E133: UNID | F133: 900 | H133: 900 | I133: 1.85 $ | J133: 50 | K133: 850 | L133: $1,572.50 | M133: $92.50
A134: 225 | B134: SOBRE MANILA 9*12 500 UNID | E134: UNID | F134: 380 | H134: 380 | I134: 13.85 $ | J134: 15 | K134: 365 | L134: $5,055.25 | M134: $207.75
A135: 226 | B135: SOBRE MANILA 14*17 1000 UNIDAD | E135: UNID | F135: 905 | H135: 905 | I135: 13.85 $ | J135: 120 | K135: 785 | L135: $10,872.25 | M135: $1,662.00
A136: 227 | B136: SOBRE MANILA 10*14 DE 500 UNID | E136: UNID | F136: 235 | H136: 235 | I136: 7.10 $ | J136: 10 | K136: 225 | L136: $1,597.50 | M136: $71.00
A137: 228 | B137: SOBRE TIMBRADO | E137: UNID | F137: 285 | H137: 285 | I137: 13.00 $ | J137: 50 | K137: 235 | L137: $3,055.00 | M137: $650.00
A138: 229 | B138: SUAPER JUMBO | E138: GALON | F138: 13 | G138: 6 | H138: 19 | I138: 175.00 $ | J138: 7 | K138: 12 | L138: $2,100.00 | M138: $1,225.00
A139: 230 | B139: SUAVITEL | E139: GALON | F139: 5 | G139: 12 | H139: =F139+G139 -> 17 | I139: 148.31 $ | J139: 3 | K139: =H139-J139 -> 14 | L139: =I139*K139 -> $2,076.34 | M139: =I139*J139 -> $444.93
A140: 231 | B140: TALONARIO DE PATOLOGIA | E140: TALONARIO | F140: 25 | H140: 25 | I140: 70.80 $ | K140: 25 | L140: $1,770.00 | M140: 0
A141: 232 | B141: TALONARIO HISTORIAL CLINICO EMERGENCIA | E141: TALONARIO | F141: 50 | H141: 50 | I141: 275.00 $ | J141: 5 | K141: 45 | L141: $12,375.00 | M141: $1,375.00
A142: 233 | B142: TALONARIO ORDEN MEDICA | E142: TALONARIO | F142: 25 | H142: 25 | I142: 275.00 $ | J142: 5 | K142: 20 | L142: $5,500.00 | M142: $1,375.00
A143: 234 | B143: TALONARIO COPROLOGICO | E143: TALONARIO | F143: 80 | H143: 80 | I143: 88.35 $ | J143: 17 | K143: 63 | L143: $5,566.05 | M143: $1,501.95
A144: 235 | B144: TALALONARIO HEMOTOLOGIA | E144: TALONARIO | F144: 34 | H144: 34 | I144: 88.35 $ | J144: 29 | K144: 5 | L144: $441.75 | M144: $2,562.15
A145: 236 | B145: TALONARIO CONFIMACION DE QUIRURGICA | E145: TALONARIO | F145: 5 | H145: 5 | I145: 185.00 $ | J145: 1 | K145: 4 | L145: $740.00 | M145: $185.00
A146: 237 | B146: TALONARIO LABORATORIO CLINICO | E146: TALONARIO | F146: 1087 | H146: 1087 | I146: 37.00 $ | J146: 187 | K146: 900 | L146: $33,300.00 | M146: $6,919.00
A147: 238 | B147: TALONARIO PARTOGRAMA POSPARTO | E147: TALONARIO | F147: 9 | H147: 9 | I147: 185.00 $ | K147: 9 | L147: $1,665.00 | M147: 0
A148: 239 | B148: TALONARIO HISTORIAL OPERATORIO | E148: RESMA | F148: 1 | H148: 1 | I148: 185.00 $ | K148: 1 | L148: $185.00 | M148: 0
A149: 240 | B149: TALONARIO URIANALISIS | E149: TALONARIO | F149: 108 | H149: 108 | I149: 53.10 $ | J149: 44 | K149: 64 | L149: $3,398.40 | M149: $2,336.40
A150: 241 | B150: TALONARIO REQUISICION DE FARMACIA | E150: TALONARIO | F150: 6 | H150: 6 | I150: 413.00 $ | K150: 6 | L150: $2,478.00 | M150: 0
A151: 242 | B151: TALONARIO CUIDADO DE ENFERERIA VIH MEDIA | E151: TALONARIO | F151: 8 | H151: 8 | I151: 275.00 $ | K151: 8 | L151: $2,200.00 | M151: 0
A152: 243 | B152: TALONARIO CONCENTIMIENTO INFORMADO LARGO | E152: TALONARIO | F152: 53 | H152: 53 | I152: 756.00 $ | K152: 53 | L152: $40,068.00 | M152: 0
A153: 244 | B153: TALONARIO DE CLASIFICACION | E153: TALONARIO | F153: 30 | H153: 30 | I153: 756.00 $ | K153: 30 | L153: $22,680.00 | M153: 0
A154: 245 | B154: TALONARIO DE CONTROL TEMPERATURA | E154: TALONARIO | F154: 15 | H154: 15 | I154: 294.00 $ | J154: 2 | K154: 13 | L154: $3,822.00 | M154: $588.00
A155: 246 | B155: TALONARIO DE CUOTA DE CONTRIBUCION | E155: TALONARIO | F155: 10 | H155: 10 | I155: 185.00 $ | K155: 10 | L155: $1,850.00 | M155: 0
A156: 247 | B156: TALONARIO PROTOCOLO ATENCION AL PARTO | E156: TALONARIO | F156: 8 | H156: 8 | I156: 185.00 $ | K156: 8 | L156: $1,480.00 | M156: 0
A157: 248 | B157: TALONARIO HOJA DE KARDEX INSUMO | E157: TALONARIO | F157: 9 | H157: 9 | I157: 994.00 $ | J157: 5 | K157: 4 | L157: $3,976.00 | M157: $4,970.00
A158: 249 | B158: TALONARIO SOLICITUD DE ALMACEN | E158: TALONARIO | F158: 6 | H158: 6 | I158: 224.00 $ | J158: 2 | K158: 4 | L158: $896.00 | M158: $448.00
A159: 250 | B159: TALONARIO SALIDA ALMACEN | E159: TALONARIO | F159: 24 | H159: 24 | I159: 275.00 $ | J159: 4 | K159: 20 | L159: $5,500.00 | M159: $1,100.00
A160: 251 | B160: TAPA DE VASOS #12 CLEA 10/100 | E160: UNID | F160: 23 | G160: 20 | H160: 43 | I160: 224.00 $ | J160: 17 | K160: 26 | L160: $5,824.00 | M160: $3,808.00
A161: 252 | B161: TARJETA DE CITA | E161: UNID | F161: 470 | H161: 470 | I161: 2.75 $ | J161: 260 | K161: 210 | L161: $577.50 | M161: $715.00
A162: 253 | B162: TARJETA DE EXPEDIENTE | E162: UNID | F162: 900 | H162: 900 | I162: 4.50 $ | J162: 300 | K162: 600 | L162: $2,700.00 | M162: $1,350.00
A163: 254 | B163: TALONARIO RECETARIO NORMAL | E163: TALONARIO | F163: 861 | H163: 861 | I163: 53.65 $ | J163: 100 | K163: 761 | L163: $40,827.65 | M163: $5,365.00
A164: 255 | B164: TIJERAS | E164: UNID | F164: 0 | H164: 0 | I164: 62.54 $ | K164: 0 | L164: 0 | M164: 0
A165: 256 | B165: TINTA PARA SELLO AZUL | E165: UNID | F165: 7 | H165: 7 | I165: 106.00 $ | J165: 1 | K165: 6 | L165: $636.00 | M165: $106.00
A166: 257 | B166: TOALLA MICROFIBRA16´´ *16´´ | E166: PAQU | F166: 9 | G166: 48 | H166: 57 | I166: 49.56 $ | J166: 11 | K166: 46 | L166: $2,279.76 | M166: $545.16
A167: 258 | B167: ENVASES PLASTICOS 4 OZ | E167: UNID | F167: 20 | G167: 20 | H167: 40 | I167: 147.00 $ | J167: 14 | K167: 26 | L167: $3,822.00 | M167: $2,058.00
A168: 259 | B168: TAPAS PLASTICAS 4 OZ | E168: PAQU | F168: 20 | G168: 20 | H168: 40 | I168: 137.00 $ | J168: 12 | K168: 28 | L168: $3,836.00 | M168: $1,644.00
A169: 260 | B169: VASO 12 CAJA 40/25 FOAM | E169: PAQU | F169: 64 | G169: 120 | H169: 184 | I169: 53.20 $ | J169: 74 | K169: 110 | L169: $5,852.00 | M169: $3,936.80
A170: 261 | B170: VASO 50 # 5 | E170: PAQU | F170: 97 | H170: 97 | I170: 55.00 $ | J170: 12 | K170: 85 | L170: $4,675.00 | M170: $660.00
A171: 262 | B171: VASOS 50 #7 | E171: PAQU | F171: 50 | G171: 150 | H171: 200 | I171: 38.94 $ | J171: 126 | K171: 74 | L171: $2,881.56 | M171: $4,906.44
L172: =SUM(L10:L171) -> $703,105.62
J173: TOTAL DE CONSUMO | L173: =SUM(M10:M172) -> $222,578.04
